{"text_format":"1","workbook":"xlsx","n_sheets":14,"sheets":["Data","Fiches_tirage","PO","Forme","Calendrier","Classement Gén","Classement PA","Classement PB","Classement Att","Classement Déf","Classement Réu","Classement Sor","Classement Agr","Classement Spectacle"],"not_rendered":{"charts":3,"images":20,"macros":1,"external_links":0,"defined_names":6,"comments":0,"pivot_tables":0},"unopened":[],"bounds":{"document_bytes":16777216,"sheet_cells":100000,"rows_first":2000,"rows_last":500,"rows_between":2000,"halvings":0,"cell_chars":16384,"cell_head_chars":4096},"cells_cut":0,"cells_raw":0,"read":"whole","date_system":"1900"}

{"sheet":"Data","index":0,"n_rows":100,"n_cols":11,"rows_kept":100,"cut":false,"hidden":false,"merged":[]}
[null,"Coach","Roster","Team",null,null,null,1,"Pistolets Roses (Isequiel - Amazones)","Bourjes (Jolmel - Bas-fonds)",{"$f":" CONCATENATE(I1,\" - \",J1)","v":"Pistolets Roses (Isequiel - Amazones) - Bourjes (Jolmel - Bas-fonds)"}]
["Poule A-1","Didier","Ogres","Machinistes",{"$f":"CONCATENATE(D2,\" (\",B2,\" - \",C2,\")\")","v":"Machinistes (Didier - Ogres)"},null,null,1,"Néfastes & Furious (Chewbac - Gobelins)","Noob's (Virginie - Humains)",{"$f":" CONCATENATE(I2,\" - \",J2)","v":"Néfastes & Furious (Chewbac - Gobelins) - Noob's (Virginie - Humains)"}]
["Poule A-10","ManX","Elfes Pros","Arl'quinquin","Arl'quinquin (ManX - Elfes Pros)",null,null,1,"Rois de Zharr-nagrund (Mik - Nains du Chaos)","Death Battleship (Doz - Morts-vivants)","Rois de Zharr-nagrund (Mik - Nains du Chaos) - Death Battleship (Doz - Morts-vivants)"]
["Poule A-2","Maryan","Bretonniens","Brochettes Quenelloises","Brochettes Quenelloises (Maryan - Bretonniens)",null,null,1,"Tortues Ninjas (Sbartacus - Hommes-Lérads)","YouKorn (Jordel - Démons de Khorne)","Tortues Ninjas (Sbartacus - Hommes-Lérads) - YouKorn (Jordel - Démons de Khorne)"]
["Poule A-3","Kirou","Nordiques","Valhalla Unicorns","Valhalla Unicorns (Kirou - Nordiques)",null,null,1,"Elfiq Froots (Ryo - Elfes Sylvains)","Bloodwind (Sagrigo - Orcs)","Elfiq Froots (Ryo - Elfes Sylvains) - Bloodwind (Sagrigo - Orcs)"]
["Poule A-4","Battleaxe","Orcs","Seattle Seaorcs","Seattle Seaorcs (Battleaxe - Orcs)",null,null,1,"Kazeurs Eud Ku (Anaconda - Orcs)","RCL (Kayvorn - Chaos)","Kazeurs Eud Ku (Anaconda - Orcs) - RCL (Kayvorn - Chaos)"]
["Poule A-5","Winny","Gobs","Karak Ungor Nervous Ulcers","Karak Ungor Nervous Ulcers (Winny - Gobs)",null,null,1,"Elftra Vomit (Blakcheim - Elfes Pros)","The fantastic Crusaders (Radelune - Pacte du Chaos)","Elftra Vomit (Blakcheim - Elfes Pros) - The fantastic Crusaders (Radelune - Pacte du Chaos)"]
["Poule A-6","Vanhu","Chaos","Goat People","Goat People (Vanhu - Chaos)",null,null,1,"Spqr (Will - Hauts Elfes)","Nurgle's Prez (Kroq - Nurgle)","Spqr (Will - Hauts Elfes) - Nurgle's Prez (Kroq - Nurgle)"]
["Poule A-7","Snagrot","Skavens","Courreurs de Malepierre","Courreurs de Malepierre (Snagrot - Skavens)",null,null,1,"Les rats guedins (Madcat - Skavens)","NainsVités (Amshagaar - Nains)","Les rats guedins (Madcat - Skavens) - NainsVités (Amshagaar - Nains)"]
["Poule A-8","BaptSalamander","MV","MLF New Age","MLF New Age (BaptSalamander - MV)",null,null,1,"Errants du Beauvaisis (Guytoo Much - Bretonniens)","Scandinaves (Dracarla - Nordiques)","Errants du Beauvaisis (Guytoo Much - Bretonniens) - Scandinaves (Dracarla - Nordiques)"]
["Poule A-9","Nard","Gobs","Merdouilles en folie !","Merdouilles en folie ! (Nard - Gobs)",null,null,2,"Pistolets Roses (Isequiel - Amazones)","Scandinaves (Dracarla - Nordiques)","Pistolets Roses (Isequiel - Amazones) - Scandinaves (Dracarla - Nordiques)"]
["Poule B-1","Aurelnatation","Elfes Sylvains","Salade Grecque","Salade Grecque (Aurelnatation - Elfes Sylvains)",null,null,2,"Néfastes & Furious (Chewbac - Gobelins)","The fantastic Crusaders (Radelune - Pacte du Chaos)","Néfastes & Furious (Chewbac - Gobelins) - The fantastic Crusaders (Radelune - Pacte du Chaos)"]
["Poule B-10","Sebnobi","Hommes lezards","KbbK","KbbK (Sebnobi - Hommes lezards)",null,null,2,"Rois de Zharr-nagrund (Mik - Nains du Chaos)","Bloodwind (Sagrigo - Orcs)","Rois de Zharr-nagrund (Mik - Nains du Chaos) - Bloodwind (Sagrigo - Orcs)"]
["Poule B-2","Donkydoc","Chaos pact","Chaos bang","Chaos bang (Donkydoc - Chaos pact)",null,null,2,"Tortues Ninjas (Sbartacus - Hommes-Lérads)","NainsVités (Amshagaar - Nains)","Tortues Ninjas (Sbartacus - Hommes-Lérads) - NainsVités (Amshagaar - Nains)"]
["Poule B-3","Jordel","Nurgle","UIPP","UIPP (Jordel - Nurgle)",null,null,2,"Elfiq Froots (Ryo - Elfes Sylvains)","YouKorn (Jordel - Démons de Khorne)","Elfiq Froots (Ryo - Elfes Sylvains) - YouKorn (Jordel - Démons de Khorne)"]
["Poule B-4","Guldhan","Elfes Noires","Shadow Unicorns","Shadow Unicorns (Guldhan - Elfes Noires)",null,null,2,"Kazeurs Eud Ku (Anaconda - Orcs)","Bourjes (Jolmel - Bas-fonds)","Kazeurs Eud Ku (Anaconda - Orcs) - Bourjes (Jolmel - Bas-fonds)"]
["Poule B-5","Moute","Nains du chaos","Thunder II","Thunder II (Moute - Nains du chaos)",null,null,2,"Elftra Vomit (Blakcheim - Elfes Pros)","Nurgle's Prez (Kroq - Nurgle)","Elftra Vomit (Blakcheim - Elfes Pros) - Nurgle's Prez (Kroq - Nurgle)"]
["Poule B-6","Rovieli","Humains","Canonniers","Canonniers (Rovieli - Humains)",null,null,2,"Spqr (Will - Hauts Elfes)","RCL (Kayvorn - Chaos)","Spqr (Will - Hauts Elfes) - RCL (Kayvorn - Chaos)"]
["Poule B-7","GuttedRunner","Hauts Elfes","Pointy Pretenders","Pointy Pretenders (GuttedRunner - Hauts Elfes)",null,null,2,"Les rats guedins (Madcat - Skavens)","Death Battleship (Doz - Morts-vivants)","Les rats guedins (Madcat - Skavens) - Death Battleship (Doz - Morts-vivants)"]
["Poule B-8","Jabba","Bas fonds","Skablin Scavengers","Skablin Scavengers (Jabba - Bas fonds)",null,null,2,"Errants du Beauvaisis (Guytoo Much - Bretonniens)","Noob's (Virginie - Humains)","Errants du Beauvaisis (Guytoo Much - Bretonniens) - Noob's (Virginie - Humains)"]
["Poule B-9","Peco","Slanns","Kislev Flying Circus","Kislev Flying Circus (Peco - Slanns)",null,null,3,"Pistolets Roses (Isequiel - Amazones)","NainsVités (Amshagaar - Nains)","Pistolets Roses (Isequiel - Amazones) - NainsVités (Amshagaar - Nains)"]
[null,null,null,null,null,null,null,3,"Néfastes & Furious (Chewbac - Gobelins)","Death Battleship (Doz - Morts-vivants)","Néfastes & Furious (Chewbac - Gobelins) - Death Battleship (Doz - Morts-vivants)"]
[null,null,null,null,null,null,null,3,"Rois de Zharr-nagrund (Mik - Nains du Chaos)","Noob's (Virginie - Humains)","Rois de Zharr-nagrund (Mik - Nains du Chaos) - Noob's (Virginie - Humains)"]
[null,null,null,null,null,null,null,3,"Tortues Ninjas (Sbartacus - Hommes-Lérads)","Bloodwind (Sagrigo - Orcs)","Tortues Ninjas (Sbartacus - Hommes-Lérads) - Bloodwind (Sagrigo - Orcs)"]
[null,null,null,null,null,null,null,3,"Elfiq Froots (Ryo - Elfes Sylvains)","Nurgle's Prez (Kroq - Nurgle)","Elfiq Froots (Ryo - Elfes Sylvains) - Nurgle's Prez (Kroq - Nurgle)"]
[null,null,null,null,null,null,null,3,"Kazeurs Eud Ku (Anaconda - Orcs)","YouKorn (Jordel - Démons de Khorne)","Kazeurs Eud Ku (Anaconda - Orcs) - YouKorn (Jordel - Démons de Khorne)"]
[null,null,null,null,null,null,null,3,"Elftra Vomit (Blakcheim - Elfes Pros)","RCL (Kayvorn - Chaos)","Elftra Vomit (Blakcheim - Elfes Pros) - RCL (Kayvorn - Chaos)"]
[null,null,null,null,null,null,null,3,"Spqr (Will - Hauts Elfes)","The fantastic Crusaders (Radelune - Pacte du Chaos)","Spqr (Will - Hauts Elfes) - The fantastic Crusaders (Radelune - Pacte du Chaos)"]
[null,null,null,null,null,null,null,3,"Les rats guedins (Madcat - Skavens)","Scandinaves (Dracarla - Nordiques)","Les rats guedins (Madcat - Skavens) - Scandinaves (Dracarla - Nordiques)"]
[null,null,null,null,null,null,null,3,"Errants du Beauvaisis (Guytoo Much - Bretonniens)","Bourjes (Jolmel - Bas-fonds)","Errants du Beauvaisis (Guytoo Much - Bretonniens) - Bourjes (Jolmel - Bas-fonds)"]
[null,null,null,null,null,null,null,4,"Pistolets Roses (Isequiel - Amazones)","Nurgle's Prez (Kroq - Nurgle)","Pistolets Roses (Isequiel - Amazones) - Nurgle's Prez (Kroq - Nurgle)"]
[null,null,null,null,null,null,null,4,"Néfastes & Furious (Chewbac - Gobelins)","Bourjes (Jolmel - Bas-fonds)","Néfastes & Furious (Chewbac - Gobelins) - Bourjes (Jolmel - Bas-fonds)"]
[null,null,null,null,null,null,null,4,"Rois de Zharr-nagrund (Mik - Nains du Chaos)","Scandinaves (Dracarla - Nordiques)","Rois de Zharr-nagrund (Mik - Nains du Chaos) - Scandinaves (Dracarla - Nordiques)"]
[null,null,null,null,null,null,null,4,"Tortues Ninjas (Sbartacus - Hommes-Lérads)","RCL (Kayvorn - Chaos)","Tortues Ninjas (Sbartacus - Hommes-Lérads) - RCL (Kayvorn - Chaos)"]
[null,null,null,null,null,null,null,4,"Elfiq Froots (Ryo - Elfes Sylvains)","Death Battleship (Doz - Morts-vivants)","Elfiq Froots (Ryo - Elfes Sylvains) - Death Battleship (Doz - Morts-vivants)"]
[null,null,null,null,null,null,null,4,"Kazeurs Eud Ku (Anaconda - Orcs)","NainsVités (Amshagaar - Nains)","Kazeurs Eud Ku (Anaconda - Orcs) - NainsVités (Amshagaar - Nains)"]
[null,null,null,null,null,null,null,4,"Elftra Vomit (Blakcheim - Elfes Pros)","Bloodwind (Sagrigo - Orcs)","Elftra Vomit (Blakcheim - Elfes Pros) - Bloodwind (Sagrigo - Orcs)"]
[null,null,null,null,null,null,null,4,"Spqr (Will - Hauts Elfes)","Noob's (Virginie - Humains)","Spqr (Will - Hauts Elfes) - Noob's (Virginie - Humains)"]
[null,null,null,null,null,null,null,4,"Les rats guedins (Madcat - Skavens)","YouKorn (Jordel - Démons de Khorne)","Les rats guedins (Madcat - Skavens) - YouKorn (Jordel - Démons de Khorne)"]
[null,null,null,null,null,null,null,4,"Errants du Beauvaisis (Guytoo Much - Bretonniens)","The fantastic Crusaders (Radelune - Pacte du Chaos)","Errants du Beauvaisis (Guytoo Much - Bretonniens) - The fantastic Crusaders (Radelune - Pacte du Chaos)"]
[null,null,null,null,null,null,null,5,"Pistolets Roses (Isequiel - Amazones)","The fantastic Crusaders (Radelune - Pacte du Chaos)","Pistolets Roses (Isequiel - Amazones) - The fantastic Crusaders (Radelune - Pacte du Chaos)"]
[null,null,null,null,null,null,null,5,"Néfastes & Furious (Chewbac - Gobelins)","RCL (Kayvorn - Chaos)","Néfastes & Furious (Chewbac - Gobelins) - RCL (Kayvorn - Chaos)"]
[null,null,null,null,null,null,null,5,"Rois de Zharr-nagrund (Mik - Nains du Chaos)","Nurgle's Prez (Kroq - Nurgle)","Rois de Zharr-nagrund (Mik - Nains du Chaos) - Nurgle's Prez (Kroq - Nurgle)"]
[null,null,null,null,null,null,null,5,"Tortues Ninjas (Sbartacus - Hommes-Lérads)","Death Battleship (Doz - Morts-vivants)","Tortues Ninjas (Sbartacus - Hommes-Lérads) - Death Battleship (Doz - Morts-vivants)"]
[null,null,null,null,null,null,null,5,"Elfiq Froots (Ryo - Elfes Sylvains)","Scandinaves (Dracarla - Nordiques)","Elfiq Froots (Ryo - Elfes Sylvains) - Scandinaves (Dracarla - Nordiques)"]
[null,null,null,null,null,null,null,5,"Kazeurs Eud Ku (Anaconda - Orcs)","Noob's (Virginie - Humains)","Kazeurs Eud Ku (Anaconda - Orcs) - Noob's (Virginie - Humains)"]
[null,null,null,null,null,null,null,5,"Elftra Vomit (Blakcheim - Elfes Pros)","YouKorn (Jordel - Démons de Khorne)","Elftra Vomit (Blakcheim - Elfes Pros) - YouKorn (Jordel - Démons de Khorne)"]
[null,null,null,null,null,null,null,5,"Spqr (Will - Hauts Elfes)","Bloodwind (Sagrigo - Orcs)","Spqr (Will - Hauts Elfes) - Bloodwind (Sagrigo - Orcs)"]
[null,null,null,null,null,null,null,5,"Les rats guedins (Madcat - Skavens)","Bourjes (Jolmel - Bas-fonds)","Les rats guedins (Madcat - Skavens) - Bourjes (Jolmel - Bas-fonds)"]
[null,null,null,null,null,null,null,5,"Errants du Beauvaisis (Guytoo Much - Bretonniens)","NainsVités (Amshagaar - Nains)","Errants du Beauvaisis (Guytoo Much - Bretonniens) - NainsVités (Amshagaar - Nains)"]
[null,null,null,null,null,null,null,6,"Pistolets Roses (Isequiel - Amazones)","Bloodwind (Sagrigo - Orcs)","Pistolets Roses (Isequiel - Amazones) - Bloodwind (Sagrigo - Orcs)"]
[null,null,null,null,null,null,null,6,"Néfastes & Furious (Chewbac - Gobelins)","Nurgle's Prez (Kroq - Nurgle)","Néfastes & Furious (Chewbac - Gobelins) - Nurgle's Prez (Kroq - Nurgle)"]
[null,null,null,null,null,null,null,6,"Rois de Zharr-nagrund (Mik - Nains du Chaos)","NainsVités (Amshagaar - Nains)","Rois de Zharr-nagrund (Mik - Nains du Chaos) - NainsVités (Amshagaar - Nains)"]
[null,null,null,null,null,null,null,6,"Tortues Ninjas (Sbartacus - Hommes-Lérads)","Bourjes (Jolmel - Bas-fonds)","Tortues Ninjas (Sbartacus - Hommes-Lérads) - Bourjes (Jolmel - Bas-fonds)"]
[null,null,null,null,null,null,null,6,"Elfiq Froots (Ryo - Elfes Sylvains)","The fantastic Crusaders (Radelune - Pacte du Chaos)","Elfiq Froots (Ryo - Elfes Sylvains) - The fantastic Crusaders (Radelune - Pacte du Chaos)"]
[null,null,null,null,null,null,null,6,"Kazeurs Eud Ku (Anaconda - Orcs)","Death Battleship (Doz - Morts-vivants)","Kazeurs Eud Ku (Anaconda - Orcs) - Death Battleship (Doz - Morts-vivants)"]
[null,null,null,null,null,null,null,6,"Elftra Vomit (Blakcheim - Elfes Pros)","Noob's (Virginie - Humains)","Elftra Vomit (Blakcheim - Elfes Pros) - Noob's (Virginie - Humains)"]
[null,null,null,null,null,null,null,6,"Spqr (Will - Hauts Elfes)","Scandinaves (Dracarla - Nordiques)","Spqr (Will - Hauts Elfes) - Scandinaves (Dracarla - Nordiques)"]
[null,null,null,null,null,null,null,6,"Les rats guedins (Madcat - Skavens)","RCL (Kayvorn - Chaos)","Les rats guedins (Madcat - Skavens) - RCL (Kayvorn - Chaos)"]
[null,null,null,null,null,null,null,6,"Errants du Beauvaisis (Guytoo Much - Bretonniens)","YouKorn (Jordel - Démons de Khorne)","Errants du Beauvaisis (Guytoo Much - Bretonniens) - YouKorn (Jordel - Démons de Khorne)"]
[null,null,null,null,null,null,null,7,"Pistolets Roses (Isequiel - Amazones)","Noob's (Virginie - Humains)","Pistolets Roses (Isequiel - Amazones) - Noob's (Virginie - Humains)"]
[null,null,null,null,null,null,null,7,"Néfastes & Furious (Chewbac - Gobelins)","NainsVités (Amshagaar - Nains)","Néfastes & Furious (Chewbac - Gobelins) - NainsVités (Amshagaar - Nains)"]
[null,null,null,null,null,null,null,7,"Rois de Zharr-nagrund (Mik - Nains du Chaos)","RCL (Kayvorn - Chaos)","Rois de Zharr-nagrund (Mik - Nains du Chaos) - RCL (Kayvorn - Chaos)"]
[null,null,null,null,null,null,null,7,"Tortues Ninjas (Sbartacus - Hommes-Lérads)","Scandinaves (Dracarla - Nordiques)","Tortues Ninjas (Sbartacus - Hommes-Lérads) - Scandinaves (Dracarla - Nordiques)"]
[null,null,null,null,null,null,null,7,"Elfiq Froots (Ryo - Elfes Sylvains)","Bourjes (Jolmel - Bas-fonds)","Elfiq Froots (Ryo - Elfes Sylvains) - Bourjes (Jolmel - Bas-fonds)"]
[null,null,null,null,null,null,null,7,"Kazeurs Eud Ku (Anaconda - Orcs)","Nurgle's Prez (Kroq - Nurgle)",{"$f":" CONCATENATE(I66,\" - \",J66)","v":"Kazeurs Eud Ku (Anaconda - Orcs) - Nurgle's Prez (Kroq - Nurgle)"}]
[null,null,null,null,null,null,null,7,"Elftra Vomit (Blakcheim - Elfes Pros)","Death Battleship (Doz - Morts-vivants)","Elftra Vomit (Blakcheim - Elfes Pros) - Death Battleship (Doz - Morts-vivants)"]
[null,null,null,null,null,null,null,7,"Spqr (Will - Hauts Elfes)","YouKorn (Jordel - Démons de Khorne)","Spqr (Will - Hauts Elfes) - YouKorn (Jordel - Démons de Khorne)"]
[null,null,null,null,null,null,null,7,"Les rats guedins (Madcat - Skavens)","The fantastic Crusaders (Radelune - Pacte du Chaos)","Les rats guedins (Madcat - Skavens) - The fantastic Crusaders (Radelune - Pacte du Chaos)"]
[null,null,null,null,null,null,null,7,"Errants du Beauvaisis (Guytoo Much - Bretonniens)","Bloodwind (Sagrigo - Orcs)","Errants du Beauvaisis (Guytoo Much - Bretonniens) - Bloodwind (Sagrigo - Orcs)"]
[null,null,null,null,null,null,null,8,"Pistolets Roses (Isequiel - Amazones)","RCL (Kayvorn - Chaos)","Pistolets Roses (Isequiel - Amazones) - RCL (Kayvorn - Chaos)"]
[null,null,null,null,null,null,null,8,"Néfastes & Furious (Chewbac - Gobelins)","YouKorn (Jordel - Démons de Khorne)","Néfastes & Furious (Chewbac - Gobelins) - YouKorn (Jordel - Démons de Khorne)"]
[null,null,null,null,null,null,null,8,"Rois de Zharr-nagrund (Mik - Nains du Chaos)","The fantastic Crusaders (Radelune - Pacte du Chaos)","Rois de Zharr-nagrund (Mik - Nains du Chaos) - The fantastic Crusaders (Radelune - Pacte du Chaos)"]
[null,null,null,null,null,null,null,8,"Tortues Ninjas (Sbartacus - Hommes-Lérads)","Noob's (Virginie - Humains)","Tortues Ninjas (Sbartacus - Hommes-Lérads) - Noob's (Virginie - Humains)"]
[null,null,null,null,null,null,null,8,"Elfiq Froots (Ryo - Elfes Sylvains)","NainsVités (Amshagaar - Nains)","Elfiq Froots (Ryo - Elfes Sylvains) - NainsVités (Amshagaar - Nains)"]
[null,null,null,null,null,null,null,8,"Kazeurs Eud Ku (Anaconda - Orcs)","Bloodwind (Sagrigo - Orcs)","Kazeurs Eud Ku (Anaconda - Orcs) - Bloodwind (Sagrigo - Orcs)"]
[null,null,null,null,null,null,null,8,"Elftra Vomit (Blakcheim - Elfes Pros)","Scandinaves (Dracarla - Nordiques)","Elftra Vomit (Blakcheim - Elfes Pros) - Scandinaves (Dracarla - Nordiques)"]
[null,null,null,null,null,null,null,8,"Spqr (Will - Hauts Elfes)","Bourjes (Jolmel - Bas-fonds)","Spqr (Will - Hauts Elfes) - Bourjes (Jolmel - Bas-fonds)"]
[null,null,null,null,null,null,null,8,"Les rats guedins (Madcat - Skavens)","Nurgle's Prez (Kroq - Nurgle)","Les rats guedins (Madcat - Skavens) - Nurgle's Prez (Kroq - Nurgle)"]
[null,null,null,null,null,null,null,8,"Errants du Beauvaisis (Guytoo Much - Bretonniens)","Death Battleship (Doz - Morts-vivants)","Errants du Beauvaisis (Guytoo Much - Bretonniens) - Death Battleship (Doz - Morts-vivants)"]
[null,null,null,null,null,null,null,9,"Pistolets Roses (Isequiel - Amazones)","Death Battleship (Doz - Morts-vivants)","Pistolets Roses (Isequiel - Amazones) - Death Battleship (Doz - Morts-vivants)"]
[null,null,null,null,null,null,null,9,"Néfastes & Furious (Chewbac - Gobelins)","Bloodwind (Sagrigo - Orcs)","Néfastes & Furious (Chewbac - Gobelins) - Bloodwind (Sagrigo - Orcs)"]
[null,null,null,null,null,null,null,9,"Rois de Zharr-nagrund (Mik - Nains du Chaos)","YouKorn (Jordel - Démons de Khorne)","Rois de Zharr-nagrund (Mik - Nains du Chaos) - YouKorn (Jordel - Démons de Khorne)"]
[null,null,null,null,null,null,null,9,"Tortues Ninjas (Sbartacus - Hommes-Lérads)","The fantastic Crusaders (Radelune - Pacte du Chaos)","Tortues Ninjas (Sbartacus - Hommes-Lérads) - The fantastic Crusaders (Radelune - Pacte du Chaos)"]
[null,null,null,null,null,null,null,9,"Elfiq Froots (Ryo - Elfes Sylvains)","RCL (Kayvorn - Chaos)","Elfiq Froots (Ryo - Elfes Sylvains) - RCL (Kayvorn - Chaos)"]
[null,null,null,null,null,null,null,9,"Kazeurs Eud Ku (Anaconda - Orcs)","Scandinaves (Dracarla - Nordiques)","Kazeurs Eud Ku (Anaconda - Orcs) - Scandinaves (Dracarla - Nordiques)"]
[null,null,null,null,null,null,null,9,"Elftra Vomit (Blakcheim - Elfes Pros)","Bourjes (Jolmel - Bas-fonds)","Elftra Vomit (Blakcheim - Elfes Pros) - Bourjes (Jolmel - Bas-fonds)"]
[null,null,null,null,null,null,null,9,"Spqr (Will - Hauts Elfes)","NainsVités (Amshagaar - Nains)","Spqr (Will - Hauts Elfes) - NainsVités (Amshagaar - Nains)"]
[null,null,null,null,null,null,null,9,"Les rats guedins (Madcat - Skavens)","Noob's (Virginie - Humains)","Les rats guedins (Madcat - Skavens) - Noob's (Virginie - Humains)"]
[null,null,null,null,null,null,null,9,"Errants du Beauvaisis (Guytoo Much - Bretonniens)","Nurgle's Prez (Kroq - Nurgle)","Errants du Beauvaisis (Guytoo Much - Bretonniens) - Nurgle's Prez (Kroq - Nurgle)"]
[null,null,null,null,null,null,null,10,"Pistolets Roses (Isequiel - Amazones)","YouKorn (Jordel - Démons de Khorne)","Pistolets Roses (Isequiel - Amazones) - YouKorn (Jordel - Démons de Khorne)"]
[null,null,null,null,null,null,null,10,"Néfastes & Furious (Chewbac - Gobelins)","Scandinaves (Dracarla - Nordiques)","Néfastes & Furious (Chewbac - Gobelins) - Scandinaves (Dracarla - Nordiques)"]
[null,null,null,null,null,null,null,10,"Rois de Zharr-nagrund (Mik - Nains du Chaos)","Bourjes (Jolmel - Bas-fonds)","Rois de Zharr-nagrund (Mik - Nains du Chaos) - Bourjes (Jolmel - Bas-fonds)"]
[null,null,null,null,null,null,null,10,"Tortues Ninjas (Sbartacus - Hommes-Lérads)","Nurgle's Prez (Kroq - Nurgle)","Tortues Ninjas (Sbartacus - Hommes-Lérads) - Nurgle's Prez (Kroq - Nurgle)"]
[null,null,null,null,null,null,null,10,"Elfiq Froots (Ryo - Elfes Sylvains)","Noob's (Virginie - Humains)","Elfiq Froots (Ryo - Elfes Sylvains) - Noob's (Virginie - Humains)"]
[null,null,null,null,null,null,null,10,"Kazeurs Eud Ku (Anaconda - Orcs)","The fantastic Crusaders (Radelune - Pacte du Chaos)","Kazeurs Eud Ku (Anaconda - Orcs) - The fantastic Crusaders (Radelune - Pacte du Chaos)"]
[null,null,null,null,null,null,null,10,"Elftra Vomit (Blakcheim - Elfes Pros)","NainsVités (Amshagaar - Nains)","Elftra Vomit (Blakcheim - Elfes Pros) - NainsVités (Amshagaar - Nains)"]
[null,null,null,null,null,null,null,10,"Spqr (Will - Hauts Elfes)","Death Battleship (Doz - Morts-vivants)","Spqr (Will - Hauts Elfes) - Death Battleship (Doz - Morts-vivants)"]
[null,null,null,null,null,null,null,10,"Les rats guedins (Madcat - Skavens)","Bloodwind (Sagrigo - Orcs)","Les rats guedins (Madcat - Skavens) - Bloodwind (Sagrigo - Orcs)"]
[null,null,null,null,null,null,null,10,"Errants du Beauvaisis (Guytoo Much - Bretonniens)","RCL (Kayvorn - Chaos)","Errants du Beauvaisis (Guytoo Much - Bretonniens) - RCL (Kayvorn - Chaos)"]

{"sheet":"Fiches_tirage","index":1,"n_rows":40,"n_cols":8,"rows_kept":40,"cut":false,"hidden":false,"merged":[[1,1,3,1],[1,2,1,4],[1,6,3,6],[1,7,1,9],[2,2,2,4],[2,7,2,9],[3,2,3,4],[3,7,3,9],[5,1,7,1],[5,2,5,4],[5,6,7,6],[5,7,5,9],[6,2,6,4],[6,7,6,9],[7,2,7,4],[7,7,7,9],[9,1,11,1],[9,2,9,4],[9,6,11,6],[9,7,9,9],[10,2,10,4],[10,7,10,9],[11,2,11,4],[11,7,11,9],[13,1,15,1],[13,2,13,4],[13,6,15,6],[13,7,13,9],[14,2,14,4],[14,7,14,9],[15,2,15,4],[15,7,15,9],[17,1,19,1],[17,2,17,4],[17,6,19,6],[17,7,17,9],[18,2,18,4],[18,7,18,9],[19,2,19,4],[19,7,19,9],[21,1,23,1],[21,2,21,4],[21,6,23,6],[21,7,21,9],[22,2,22,4],[22,7,22,9],[23,2,23,4],[23,7,23,9],[25,1,27,1],[25,2,25,4],[25,6,27,6],[25,7,25,9],[26,2,26,4],[26,7,26,9],[27,2,27,4],[27,7,27,9],[29,1,31,1],[29,2,29,4],[29,6,31,6],[29,7,29,9],[30,2,30,4],[30,7,30,9],[31,2,31,4],[31,7,31,9],[33,1,35,1],[33,2,33,4],[33,6,35,6],[33,7,33,9],[34,2,34,4],[34,7,34,9],[35,2,35,4],[35,7,35,9],[37,1,39,1],[37,2,37,4],[37,6,39,6],[37,7,37,9],[38,2,38,4],[38,7,38,9],[39,2,39,4],[39,7,39,9]]}
[]
[null,null,{"$f":"Data!$D2","v":"Machinistes"},null,null,null,null,{"$f":"Data!$D3","v":"Arl'quinquin"}]
[null,null,{"$f":"CONCATENATE(\" (\",Data!$C2,\")\")","v":" (Ogres)"},null,null,null,null,{"$f":"CONCATENATE(\" (\",Data!$C3,\")\")","v":" (Elfes Pros)"}]
[null,null,{"$f":"Data!$B2","v":"Didier"},null,null,null,null,{"$f":"Data!$B3","v":"ManX"}]
[]
[null,null,{"$f":"Data!D4","v":"Brochettes Quenelloises"},null,null,null,null,{"$f":"Data!$D5","v":"Valhalla Unicorns"}]
[null,null,{"$f":"CONCATENATE(\" (\",Data!C4,\")\")","v":" (Bretonniens)"},null,null,null,null,{"$f":"CONCATENATE(\" (\",Data!$C5,\")\")","v":" (Nordiques)"}]
[null,null,{"$f":"Data!B4","v":"Maryan"},null,null,null,null,{"$f":"Data!$B5","v":"Kirou"}]
[]
[null,null,{"$f":"Data!$D6","v":"Seattle Seaorcs"},null,null,null,null,{"$f":"Data!$D7","v":"Karak Ungor Nervous Ulcers"}]
[null,null,{"$f":"CONCATENATE(\" (\",Data!$C6,\")\")","v":" (Orcs)"},null,null,null,null,{"$f":"CONCATENATE(\" (\",Data!$C7,\")\")","v":" (Gobs)"}]
[null,null,{"$f":"Data!$B6","v":"Battleaxe"},null,null,null,null,{"$f":"Data!$B7","v":"Winny"}]
[]
[null,null,{"$f":"Data!$D8","v":"Goat People"},null,null,null,null,{"$f":"Data!$D9","v":"Courreurs de Malepierre"}]
[null,null,{"$f":"CONCATENATE(\" (\",Data!$C8,\")\")","v":" (Chaos)"},null,null,null,null,{"$f":"CONCATENATE(\" (\",Data!$C9,\")\")","v":" (Skavens)"}]
[null,null,{"$f":"Data!$B8","v":"Vanhu"},null,null,null,null,{"$f":"Data!$B9","v":"Snagrot"}]
[]
[null,null,{"$f":"Data!$D10","v":"MLF New Age"},null,null,null,null,{"$f":"Data!$D11","v":"Merdouilles en folie !"}]
[null,null,{"$f":"CONCATENATE(\" (\",Data!$C10,\")\")","v":" (MV)"},null,null,null,null,{"$f":"CONCATENATE(\" (\",Data!$C11,\")\")","v":" (Gobs)"}]
[null,null,{"$f":"Data!$B10","v":"BaptSalamander"},null,null,null,null,{"$f":"Data!$B11","v":"Nard"}]
[]
[null,null,{"$f":"Data!$D12","v":"Salade Grecque"},null,null,null,null,{"$f":"Data!$D13","v":"KbbK"}]
[null,null,{"$f":"CONCATENATE(\" (\",Data!$C12,\")\")","v":" (Elfes Sylvains)"},null,null,null,null,{"$f":"CONCATENATE(\" (\",Data!$C13,\")\")","v":" (Hommes lezards)"}]
[null,null,{"$f":"Data!$B12","v":"Aurelnatation"},null,null,null,null,{"$f":"Data!$B13","v":"Sebnobi"}]
[]
[null,null,{"$f":"Data!$D14","v":"Chaos bang"},null,null,null,null,{"$f":"Data!$D15","v":"UIPP"}]
[null,null,{"$f":"CONCATENATE(\" (\",Data!$C14,\")\")","v":" (Chaos pact)"},null,null,null,null,{"$f":"CONCATENATE(\" (\",Data!$C15,\")\")","v":" (Nurgle)"}]
[null,null,{"$f":"Data!$B14","v":"Donkydoc"},null,null,null,null,{"$f":"Data!$B15","v":"Jordel"}]
[]
[null,null,{"$f":"Data!$D16","v":"Shadow Unicorns"},null,null,null,null,{"$f":"Data!$D17","v":"Thunder II"}]
[null,null,{"$f":"CONCATENATE(\" (\",Data!$C16,\")\")","v":" (Elfes Noires)"},null,null,null,null,{"$f":"CONCATENATE(\" (\",Data!$C17,\")\")","v":" (Nains du chaos)"}]
[null,null,{"$f":"Data!$B16","v":"Guldhan"},null,null,null,null,{"$f":"Data!$B17","v":"Moute"}]
[]
[null,null,{"$f":"Data!$D18","v":"Canonniers"},null,null,null,null,{"$f":"Data!$D19","v":"Pointy Pretenders"}]
[null,null,{"$f":"CONCATENATE(\" (\",Data!$C18,\")\")","v":" (Humains)"},null,null,null,null,{"$f":"CONCATENATE(\" (\",Data!$C19,\")\")","v":" (Hauts Elfes)"}]
[null,null,{"$f":"Data!$B18","v":"Rovieli"},null,null,null,null,{"$f":"Data!$B19","v":"GuttedRunner"}]
[]
[null,null,{"$f":"Data!$D20","v":"Skablin Scavengers"},null,null,null,null,{"$f":"Data!$D21","v":"Kislev Flying Circus"}]
[null,null,{"$f":"CONCATENATE(\" (\",Data!$C20,\")\")","v":" (Bas fonds)"},null,null,null,null,{"$f":"CONCATENATE(\" (\",Data!$C21,\")\")","v":" (Slanns)"}]
[null,null,{"$f":"Data!$B20","v":"Jabba"},null,null,null,null,{"$f":"Data!$B21","v":"Peco"}]

{"sheet":"PO","index":2,"n_rows":40,"n_cols":33,"rows_kept":40,"cut":false,"hidden":false,"merged":[[1,1,2,27],[1,29,1,30],[1,31,1,32],[3,13,3,15],[3,18,3,20],[3,24,3,26],[6,20,7,20],[7,4,8,4],[7,24,8,24],[8,8,9,8],[8,9,9,9],[8,19,9,19],[8,20,9,20],[9,13,10,13],[5,13,6,13],[6,8,7,8],[6,9,7,9],[6,10,9,10],[6,18,9,18],[6,19,7,19],[13,20,14,20],[14,4,15,4],[14,24,15,24],[15,8,16,8],[15,9,16,9],[15,19,16,19],[15,20,16,20],[16,13,17,13],[12,13,13,13],[13,8,14,8],[13,9,14,9],[13,10,16,10],[13,18,16,18],[13,19,14,19],[21,1,22,27],[21,29,21,30],[24,13,24,15],[24,18,24,20],[24,24,24,26],[27,19,28,19],[27,20,28,20],[28,4,29,4],[28,24,29,24],[29,8,30,8],[29,9,30,9],[29,19,30,19],[29,20,30,20],[30,13,31,13],[26,13,27,13],[27,8,28,8],[27,9,28,9],[27,10,30,10],[27,18,30,18],[34,20,35,20],[35,4,36,4],[35,24,36,24],[36,8,37,8],[36,9,37,9],[36,19,37,19],[36,20,37,20],[37,13,38,13],[33,13,34,13],[34,8,35,8],[34,9,35,9],[34,10,37,10],[34,18,37,18],[34,19,35,19]]}
[]
[null,"MEGABOWL",null,null,null,null,null,null,null,null,null,null,null,null,null,null,null,null,null,null,null,null,null,null,null,null,null,null,null,"Classement Saison",null,"Classement Saison"]
[null,null,null,null,null,null,null,null,null,null,null,null,null,null,null,null,null,null,null,null,null,null,null,null,null,null,null,null,null,"1A",{"$f":"'Classement PA'!C4","v":"Valhalla Unicorns (Kirou - Nordiques)"},"1B",{"$f":"'Classement PB'!C4","v":"Salade Grecque (Aurelnatation - Elfes Sylvains)"}]
[null,null,"Matches de classement",null,null,null,null,null,"Matches de classement",null,null,null,null,"Quarts de finale",null,null,null,null,"Demies finales",null,null,null,null,null,"Finales",null,null,null,null,"2A",{"$f":"'Classement PA'!C5","v":"Machinistes (Didier - Ogres)"},"2B",{"$f":"'Classement PB'!C5","v":"Thunder II (Moute - Nains du chaos)"}]
[null,null,null,null,null,null,null,null,null,null,null,null,null,null,null,null,null,null,null,null,null,null,null,null,null,null,null,null,null,"3A",{"$f":"'Classement PA'!C6","v":"Goat People (Vanhu - Chaos)"},"3B",{"$f":"'Classement PB'!C6","v":"Shadow Unicorns (Guldhan - Elfes Noires)"}]
[null,null,null,null,null,null,null,null,null,null,null,null,null,"A",{"$f":"AE3","v":"Valhalla Unicorns (Kirou - Nordiques)"},null,null,null,null,null,null,null,null,null,null,null,null,null,null,"4A",{"$f":"'Classement PA'!C7","v":"Seattle Seaorcs (Battleaxe - Orcs)"},"4B",{"$f":"'Classement PB'!C7","v":"KbbK (Sebnobi - Hommes lezards)"}]
[null,null,null,null,null,null,null,null,null,{"$f":"IF(AND(ISNUMBER(P6),ISNUMBER(P7)),IF(P6>P7,O7,IF(P7>P6,O6,\"Perdant A\")),\"Perdant A\")","v":"Perdant A"},"G",null,null,null,{"$f":"AG6","v":"KbbK (Sebnobi - Hommes lezards)"},null,null,null,"E",{"$f":"IF(AND(ISNUMBER(P6),ISNUMBER(P7)),IF(P6>P7,O6,IF(P7>P6,O7,\"Vainqueur A\")),\"Vainqueur A\")","v":"Vainqueur A"},null,null,null,null,null,null,null,null,null,"5A",{"$f":"'Classement PA'!C8","v":"Arl'quinquin (ManX - Elfes Pros)"},"5B",{"$f":"'Classement PB'!C8","v":"Skablin Scavengers (Jabba - Bas fonds)"}]
[null,null,null,{"$f":"IF(AND(ISNUMBER(I7),ISNUMBER(I9)),IF(I7>I9,J7,IF(I9>I7,J9,\"Vainqueur G\")),\"Vainqueur G\")","v":"Vainqueur G"},"K",null,null,null,null,null,null,null,null,null,null,null,null,null,null,null,null,null,null,null,"I",{"$f":"IF(AND(ISNUMBER(U7),ISNUMBER(U9)),IF(U7>U9,T7,IF(U9>U7,T9,\"Vainqueur E\")),\"Vainqueur E\")","v":"Vainqueur E"},null,null,null,"6A",{"$f":"'Classement PA'!C9","v":"Courreurs de Malepierre (Snagrot - Skavens)"},"6B",{"$f":"'Classement PB'!C9","v":"UIPP (Jordel - Nurgle)"}]
[null,null,null,{"$f":"IF(AND(ISNUMBER(I14),ISNUMBER(I16)),IF(I14>I16,J14,IF(I16>I14,J16,\"Vainqueur H\")),\"Vainqueur H\")","v":"Vainqueur H"},null,null,null,null,null,{"$f":"IF(AND(ISNUMBER(P10),ISNUMBER(P11)),IF(P10>P11,O11,IF(P11>P10,O10,\"Perdant B\")),\"Perdant B\")","v":"Perdant B"},null,null,null,null,null,null,null,null,null,{"$f":"IF(AND(ISNUMBER(P10),ISNUMBER(P11)),IF(P10>P11,O10,IF(P11>P10,O11,\"Vainqueur B\")),\"Vainqueur B\")","v":"Vainqueur B"},null,null,null,null,null,{"$f":"IF(AND(ISNUMBER(U14),ISNUMBER(U16)),IF(U14>U16,T14,IF(U16>U14,T16,\"Vainqueur F\")),\"Vainqueur F\")","v":"Vainqueur F"},null,null,null,"7A",{"$f":"'Classement PA'!C10","v":"Merdouilles en folie ! (Nard - Gobs)"},"7B",{"$f":"'Classement PB'!C10","v":"Pointy Pretenders (GuttedRunner - Hauts Elfes)"}]
[null,null,null,null,null,null,null,null,null,null,null,null,null,"B",{"$f":"AE5","v":"Goat People (Vanhu - Chaos)"},null,null,null,null,null,null,null,null,null,null,null,null,null,null,"8A",{"$f":"'Classement PA'!C11","v":"Brochettes Quenelloises (Maryan - Bretonniens)"},"8B",{"$f":"'Classement PB'!C11","v":"Kislev Flying Circus (Peco - Slanns)"}]
[null,null,null,null,null,null,null,null,null,null,null,null,null,null,{"$f":"AG4","v":"Thunder II (Moute - Nains du chaos)"},null,null,null,null,null,null,null,null,null,null,null,null,null,null,"9A",{"$f":"'Classement PA'!C12","v":"Karak Ungor Nervous Ulcers (Winny - Gobs)"},"9B",{"$f":"'Classement PB'!C12","v":"Canonniers (Rovieli - Humains)"}]
[]
[null,null,null,null,null,null,null,null,null,null,null,null,null,"C",{"$f":"AG3","v":"Salade Grecque (Aurelnatation - Elfes Sylvains)"}]
[null,null,null,null,null,null,null,null,null,{"$f":"IF(AND(ISNUMBER(P13),ISNUMBER(P14)),IF(P13>P14,O14,IF(P14>P13,O13,\"Perdant C\")),\"Perdant C\")","v":"Perdant C"},"H",null,null,null,{"$f":"AE6","v":"Seattle Seaorcs (Battleaxe - Orcs)"},null,null,null,"F",{"$f":"IF(AND(ISNUMBER(P13),ISNUMBER(P14)),IF(P13>P14,O13,IF(P14>P13,O14,\"Vainqueur C\")),\"Vainqueur C\")","v":"Vainqueur C"}]
[null,null,null,{"$f":"IF(AND(ISNUMBER(I7),ISNUMBER(I9)),IF(I7>I9,J9,IF(I9>I7,J7,\"Perdant G\")),\"Perdant G\")","v":"Perdant G"},"L",null,null,null,null,null,null,null,null,null,null,null,null,null,null,null,null,null,null,null,"J",{"$f":"IF(AND(ISNUMBER(U7),ISNUMBER(U9)),IF(U7>U9,T9,IF(U9>U7,T7,\"Perdant E\")),\"Perdant E\")","v":"Perdant E"}]
[null,null,null,{"$f":"IF(AND(ISNUMBER(I14),ISNUMBER(I16)),IF(I14>I16,J16,IF(I16>I14,J14,\"Perdant H\")),\"Perdant H\")","v":"Perdant H"},null,null,null,null,null,{"$f":"IF(AND(ISNUMBER(P17),ISNUMBER(P18)),IF(P17>P18,O18,IF(P18>P17,O17,\"Perdant D\")),\"Perdant D\")","v":"Perdant D"},null,null,null,null,null,null,null,null,null,{"$f":"IF(AND(ISNUMBER(P17),ISNUMBER(P18)),IF(P17>P18,O17,IF(P18>P17,O18,\"Vainqueur D\")),\"Vainqueur D\")","v":"Vainqueur D"},null,null,null,null,null,{"$f":"IF(AND(ISNUMBER(U14),ISNUMBER(U16)),IF(U14>U16,T16,IF(U16>U14,T14,\"Perdant F\")),\"Perdant F\")","v":"Perdant F"}]
[null,null,null,null,null,null,null,null,null,null,null,null,null,"D",{"$f":"AE4","v":"Machinistes (Didier - Ogres)"}]
[null,null,null,null,null,null,null,null,null,null,null,null,null,null,{"$f":"AG5","v":"Shadow Unicorns (Guldhan - Elfes Noires)"}]
[]
[]
[]
[null,"LOOSEBOWL",null,null,null,null,null,null,null,null,null,null,null,null,null,null,null,null,null,null,null,null,null,null,null,null,null,null,null,"Classement PO"]
[null,null,null,null,null,null,null,null,null,null,null,null,null,null,null,null,null,null,null,null,null,null,null,null,null,null,null,null,null,1,{"$f":"IF(AND(ISNUMBER(AA8),ISNUMBER(AA9)),IF(AA8>AA9,Z8,IF(AA9>AA8,Z9,\"vainqueur I\")),\"vainqueur I\")","v":"vainqueur I"}]
[null,null,null,null,null,null,null,null,null,null,null,null,null,null,null,null,null,null,null,null,null,null,null,null,null,null,null,null,null,2,{"$f":"IF(AND(ISNUMBER(AA8),ISNUMBER(AA9)),IF(AA8>AA9,Z9,IF(AA9>AA8,Z8,\"perdant I\")),\"perdant I\")","v":"perdant I"}]
[null,null,"Matches de classement",null,null,null,null,null,"Matches de classement",null,null,null,null,"Quarts de finale",null,null,null,null,"Demies finales",null,null,null,null,null,"Finales",null,null,null,null,3,{"$f":"IF(AND(ISNUMBER(AA15),ISNUMBER(AA16)),IF(AA15>AA16,Z15,IF(AA16>AA15,Z16,\"vainqueur J\")),\"vainqueur J\")","v":"vainqueur J"}]
[null,null,null,null,null,null,null,null,null,null,null,null,null,null,null,null,null,null,null,null,null,null,null,null,null,null,null,null,null,4,{"$f":"IF(AND(ISNUMBER(AA15),ISNUMBER(AA16)),IF(AA15>AA16,Z16,IF(AA16>AA15,Z15,\"perdant J\")),\"perdant J\")","v":"perdant J"}]
[null,null,null,null,null,null,null,null,null,null,null,null,null,"M",{"$f":"AE7","v":"Arl'quinquin (ManX - Elfes Pros)"},null,null,null,null,null,null,null,null,null,null,null,null,null,null,5,{"$f":"IF(AND(ISNUMBER(C8),ISNUMBER(C9)),IF(C8>C9,D8,IF(C9>C8,D9,\"vainqueur K\")),\"vainqueur K\")","v":"vainqueur K"}]
[null,null,null,null,null,null,null,null,null,{"$f":"IF(AND(ISNUMBER(P27),ISNUMBER(P28)),IF(P27>P28,O28,IF(P28>P27,O27,\"Perdant M\")),\"Perdant M\")","v":"Perdant M"},"S",null,null,null,{"$f":"AE11","v":"Karak Ungor Nervous Ulcers (Winny - Gobs)"},null,null,null,"Q",{"$f":"IF(AND(ISNUMBER(P27),ISNUMBER(P28)),IF(P27>P28,O27,IF(P28>P27,O28,\"Vainqueur M\")),\"Vainqueur M\")","v":"Vainqueur M"},null,null,null,null,null,null,null,null,null,6,{"$f":"IF(AND(ISNUMBER(C8),ISNUMBER(C9)),IF(C8>C9,D9,IF(C9>C8,D8,\"perdant K\")),\"perdant K\")","v":"perdant K"}]
[null,null,null,{"$f":"IF(AND(ISNUMBER(I28),ISNUMBER(I30)),IF(I28>I30,J28,IF(I30>I28,J30,\"Vainqueur S\")),\"Vainqueur S\")","v":"Vainqueur S"},"W",null,null,null,null,null,null,null,null,null,null,null,null,null,null,null,null,null,null,null,"U",{"$f":"IF(AND(ISNUMBER(U28),ISNUMBER(U30)),IF(U28>U30,T28,IF(U30>U28,T30,\"Vainqueur Q\")),\"Vainqueur Q\")","v":"Vainqueur Q"},null,null,null,7,{"$f":"IF(AND(ISNUMBER(C15),ISNUMBER(C16)),IF(C15>C16,D15,IF(C16>C15,D16,\"vainqueur L\")),\"vainqueur L\")","v":"vainqueur L"}]
[null,null,null,{"$f":"IF(AND(ISNUMBER(I35),ISNUMBER(I37)),IF(I35>I37,J35,IF(I37>I35,J37,\"Vainqueur T\")),\"Vainqueur T\")","v":"Vainqueur T"},null,null,null,null,null,{"$f":"IF(AND(ISNUMBER(P31),ISNUMBER(P32)),IF(P31>P32,O32,IF(P32>P31,O31,\"Perdant N\")),\"Perdant N\")","v":"Perdant N"},null,null,null,null,null,null,null,null,null,{"$f":"IF(AND(ISNUMBER(P31),ISNUMBER(P32)),IF(P31>P32,O31,IF(P32>P31,O32,\"Vainqueur N\")),\"Vainqueur N\")","v":"Vainqueur N"},null,null,null,null,null,{"$f":"IF(AND(ISNUMBER(U35),ISNUMBER(U37)),IF(U35>U37,T35,IF(U37>U35,T37,\"Vainqueur R\")),\"Vainqueur R\")","v":"Vainqueur R"},null,null,null,8,{"$f":"IF(AND(ISNUMBER(C15),ISNUMBER(C16)),IF(C15>C16,D16,IF(C16>C15,D15,\"perdant L\")),\"perdant L\")","v":"perdant L"}]
[null,null,null,null,null,null,null,null,null,null,null,null,null,"N",{"$f":"AE9","v":"Merdouilles en folie ! (Nard - Gobs)"},null,null,null,null,null,null,null,null,null,null,null,null,null,null,9,{"$f":"IF(AND(ISNUMBER(AA29),ISNUMBER(AA30)),IF(AA29>AA30,Z29,IF(AA30>AA29,Z30,\"vainqueur U\")),\"vainqueur U\")","v":"vainqueur U"}]
[null,null,null,null,null,null,null,null,null,null,null,null,null,null,{"$f":"AG8","v":"UIPP (Jordel - Nurgle)"},null,null,null,null,null,null,null,null,null,null,null,null,null,null,10,{"$f":"IF(AND(ISNUMBER(AA29),ISNUMBER(AA30)),IF(AA29>AA30,Z30,IF(AA30>AA29,Z29,\"perdant U\")),\"perdant U\")","v":"perdant U"}]
[null,null,null,null,null,null,null,null,null,null,null,null,null,null,null,null,null,null,null,null,null,null,null,null,null,null,null,null,null,11,{"$f":"IF(AND(ISNUMBER(AA36),ISNUMBER(AA37)),IF(AA36>AA37,Z36,IF(AA37>AA36,Z37,\"vainqueur V\")),\"vainqueur V\")","v":"vainqueur V"}]
[null,null,null,null,null,null,null,null,null,null,null,null,null,"O",{"$f":"AG7","v":"Skablin Scavengers (Jabba - Bas fonds)"},null,null,null,null,null,null,null,null,null,null,null,null,null,null,12,{"$f":"IF(AND(ISNUMBER(AA36),ISNUMBER(AA37)),IF(AA36>AA37,Z37,IF(AA37>AA36,Z36,\"perdant V\")),\"perdant V\")","v":"perdant V"}]
[null,null,null,null,null,null,null,null,null,{"$f":"IF(AND(ISNUMBER(P34),ISNUMBER(P35)),IF(P34>P35,O35,IF(P35>P34,O34,\"Perdant O\")),\"Perdant O\")","v":"Perdant O"},"T",null,null,null,{"$f":"AE10","v":"Brochettes Quenelloises (Maryan - Bretonniens)"},null,null,null,"R",{"$f":"IF(AND(ISNUMBER(P34),ISNUMBER(P35)),IF(P34>P35,O34,IF(P35>P34,O35,\"Vainqueur O\")),\"Vainqueur O\")","v":"Vainqueur O"},null,null,null,null,null,null,null,null,null,13,{"$f":"IF(AND(ISNUMBER(C29),ISNUMBER(C30)),IF(C29>C30,D29,IF(C30>C29,D30,\"vainqueur W\")),\"vainqueur W\")","v":"vainqueur W"}]
[null,null,null,{"$f":"IF(AND(ISNUMBER(I28),ISNUMBER(I30)),IF(I28>I30,J30,IF(I30>I28,J28,\"Perdant S\")),\"Perdant S\")","v":"Perdant S"},"X",null,null,null,null,null,null,null,null,null,null,null,null,null,null,null,null,null,null,null,"V",{"$f":"IF(AND(ISNUMBER(U28),ISNUMBER(U30)),IF(U28>U30,T30,IF(U30>U28,T28,\"Perdant Q\")),\"Perdant Q\")","v":"Perdant Q"},null,null,null,14,{"$f":"IF(AND(ISNUMBER(C29),ISNUMBER(C30)),IF(C29<C30,D29,IF(C30<C29,D30,\"perdant W\")),\"perdant W\")","v":"perdant W"}]
[null,null,null,{"$f":"IF(AND(ISNUMBER(I35),ISNUMBER(I37)),IF(I35>I37,J37,IF(I37>I35,J35,\"Perdant T\")),\"Perdant T\")","v":"Perdant T"},null,null,null,null,null,{"$f":"IF(AND(ISNUMBER(P38),ISNUMBER(P39)),IF(P38>P39,O39,IF(P39>P38,O38,\"Perdant P\")),\"Perdant P\")","v":"Perdant P"},null,null,null,null,null,null,null,null,null,{"$f":"IF(AND(ISNUMBER(P38),ISNUMBER(P39)),IF(P38>P39,O38,IF(P39>P38,O39,\"Vainqueur P\")),\"Vainqueur P\")","v":"Vainqueur P"},null,null,null,null,null,{"$f":"IF(AND(ISNUMBER(U35),ISNUMBER(U37)),IF(U35>U37,T37,IF(U37>U35,T35,\"Perdant R\")),\"Perdant R\")","v":"Perdant R"},null,null,null,15,{"$f":"IF(AND(ISNUMBER(C36),ISNUMBER(C37)),IF(C36>C37,D36,IF(D37>D36,D37,\"vainqueur X\")),\"vainqueur X\")","v":"vainqueur X"}]
[null,null,null,null,null,null,null,null,null,null,null,null,null,"P",{"$f":"AE8","v":"Courreurs de Malepierre (Snagrot - Skavens)"},null,null,null,null,null,null,null,null,null,null,null,null,null,null,16,{"$f":"IF(AND(ISNUMBER(C36),ISNUMBER(C37)),IF(C36<C37,D36,IF(D37<D36,D37,\"perdant X\")),\"perdant X\")","v":"perdant X"}]
[null,null,null,null,null,null,null,null,null,null,null,null,null,null,{"$f":"AG9","v":"Pointy Pretenders (GuttedRunner - Hauts Elfes)"},null,null,null,null,null,null,null,null,null,null,null,null,null,null,17,{"$f":"AG10","v":"Kislev Flying Circus (Peco - Slanns)"}]
[null,null,null,null,null,null,null,null,null,null,null,null,null,null,null,null,null,null,null,null,null,null,null,null,null,null,null,null,null,18,{"$f":"AG11","v":"Canonniers (Rovieli - Humains)"}]

{"sheet":"Forme","index":3,"n_rows":69,"n_cols":13,"rows_kept":69,"cut":false,"hidden":false,"merged":[[1,1,1,11],[23,1,23,11],[45,1,45,11],[58,1,58,11]]}
[]
[null,"Série en cours"]
[null,null,"J1","J2","J3","J4","J5","J6","J7","J8","J9","J10"]
[null,"Samaraska Karn (Isequiel - Nécromantiques)","2-2","1-0","3-0","2-0","1-1","1-0","1-1","2-2","2-1","1-1",35]
[null,"France 98 (Dracarla - Humains)","1-1","3-0","2-0","0-2","2-0","1-0","2-1","2-2","1-0","1-2",34]
[null,"Rest In Peace (Jolmel - Nains du Chaos)","1-1","2-1","2-1","2-0","2-1","0-1","1-1","1-0","1-1","0-0",33]
[null,"Polar Beers (Chewbac - Nordiques)","2-0","1-0","1-0","1-1","1-2","1-1","2-0","1-1","0-1","2-1",32]
[null,"Nécros Nécropeu (Coyotte - Nécromantiques)","2-2","1-0","2-0","4-0","1-1","1-0","0-2","0-1","2-0","1-1",31]
[null,"Les éclavagistes Rouges (Radelune - Elfes Noires)","2-4","1-2","0-3","2-0","2-0","1-0","1-0","1-2","1-0","4-1",30]
[null,"B4A - Biffle For All (Jordel - Chaos)","3-0","2-1","0-0","2-2","2-1","0-1","1-1","1-1","1-0","0-0",29]
[null,"Ravengers (CK_Will - Skavens)","4-2","1-2","1-1","6-2","0-2","3-0","1-2","1-0","1-0","0-1",27]
[null,"Cauchemards D'ulthuan (Mik'Yahel - Elfes Noires)","1-1","2-1","0-0","2-0","1-2","3-1","0-1","2-1","0-2","1-1",26]
[null,"Chos Chachaos (Ryo - Chaos)","2-2","1-2","1-0","0-2","0-2","1-1","1-0","2-1","1-1","1-0",25]
[null,"The Hell (Kroq - Nains du Chaos)","3-0","0-1","1-0","1-1","F-F","0-3","1-1","1-0","1-1","1-1",23]
[null,"En collants ou legging (Kayvorn - Elfes Pro)","2-2","3-0","0-2","2-2","F-F","2-0","2-1","1-2","1-1","1-4",22]
[null,"The Windwalkers (Madcat - Elfes Pro)","0-2","0-3","1-2","2-6","1-0","1-3","1-0","1-0","1-2","3-1",21]
[null,"Boulets (Badger - Orques)","0-3","0-3","0-2","0-2","1-0","1-0","0-1","2-1","2-1","1-3",20]
[null,"Ça Va Cogner ! (Doz - Nordiques)","2-2","0-1","1-1","1-0","0-1","0-2","1-0","0-1","1-2","1-0",19]
[null,"Fairy Tail (Blackheim - Nains)","1-1","2-0","0-1","0-2","1-0","0-1","1-2","1-2","0-1","1-0",17]
[null,"Tortues Ninjas (Sbartacus - Hommes Lézards)","2-2","0-1","0-1","0-1","0-1","0-1","0-1","0-1","0-1","0-1",2]
[null,"Pitiful Dwarves (Dweezil - Nains)","0-3","0-2","0-1","0-4","0-1","0-1","0-1","0-1","0-1","0-1",0]
[]
[]
[null,"Evolution classement général"]
[null,null,"J1","J2","J3","J4","J5","J6","J7","J8","J9","J10"]
["A","Rest In Peace (Jolmel - Nains du Chaos)",14,9,6,3,1,4,3,1]
["B","France 98 (Dracarla - Humains)",12,4,2,8,5,4,1,2]
["B","Samaraska Karn (Isequiel - Nécromantiques)",5,6,3,2,3,2,2,3]
["B","Polar Beers (Chewbac - Nordiques)",4,2,1,4,6,7,4,4]
["A","Nécros Nécropeu (Coyotte - Nécromantiques)",6,7,5,1,2,1,5,5]
["A","Cauchemards D'ulthuan (Mik'Yahel - Elfes Noires)",13,8,8,6,7,6,9,6]
["A","B4A - Biffle For All (Jordel - Chaos)",1,1,4,5,4,5,6,7]
["B","Ravengers (CK_Will - Skavens)",3,11,9,7,8,8,10,8]
["B","Les éclavagistes Rouges (Radelune - Elfes Noires)",15,15,15,14,11,9,7,9]
["B","En collants ou legging (Kayvorn - Elfes Pro)",10,3,10,10,12,10,8,10]
["A","The Hell (Kroq - Nains du Chaos)",2,10,7,9,9,11,11,11]
["A","Chos Chachaos (Ryo - Chaos)",7,12,12,13,14,15,13,12]
["A","Boulets (Badger - Orques)",17,18,18,17,16,13,15,13]
["A","The Windwalkers (Madcat - Elfes Pro)",16,16,16,16,15,16,16,14]
["B","Ça Va Cogner ! (Doz - Nordiques)",9,14,13,11,13,14,12,15]
["A","Fairy Tail (Blackheim - Nains)",11,5,11,12,10,12,14,16]
["B","Tortues Ninjas (Sbartacus - Hommes Lézards)",8,13,14,15,17,17,17,17]
["B","Pitiful Dwarves (Dweezil - Nains)",18,17,17,18,18,18,18,18]
[]
[]
[null,"Evolution classement PA"]
[null,null,"J1","J2","J3","J4","J5","J6","J7","J8","J9","J10"]
["A","France 98 (Dracarla - Humains)",7,2,1,3,3,2,1,1]
["A","Nécros Nécropeu (Coyotte - Nécromantiques)",3,4,3,1,1,1,2,2]
["A","B4A - Biffle For All (Jordel - Chaos)",1,1,2,2,2,3,3,3]
["A","Les éclavagistes Rouges (Radelune - Elfes Noires)",8,8,8,8,6,4,4,4]
["A","The Hell (Kroq - Nains du Chaos)",2,5,4,4,4,5,5,5]
["A","Chos Chachaos (Ryo - Chaos)",4,6,6,7,8,8,7,6]
["A","The Windwalkers (Madcat - Elfes Pro)",9,9,9,9,9,9,9,7]
["A","Ça Va Cogner ! (Doz - Nordiques)",5,7,7,5,7,7,6,8]
["A","Fairy Tail (Blackheim - Nains)",6,3,5,6,5,6,8,9]
[]
[]
[null,"Evolution classement PB"]
[null,null,"J1","J2","J3","J4","J5","J6","J7","J8","J9","J10"]
["B","Rest In Peace (Jolmel - Nains du Chaos)",7,5,3,2,1,2,2,1]
["B","Samaraska Karn (Isequiel - Nécromantiques)",3,3,2,1,2,1,1,2]
["B","Polar Beers (Chewbac - Nordiques)",2,1,1,3,3,4,3,3]
["B","Cauchemards D'ulthuan (Mik'Yahel - Elfes Noires)",6,4,4,4,4,3,5,4]
["B","Ravengers (CK_Will - Skavens)",1,6,5,5,5,5,6,5]
["B","En collants ou legging (Kayvorn - Elfes Pro)",5,2,6,6,6,6,4,6]
["B","Boulets (Badger - Orques)",8,9,9,8,7,7,7,7]
["B","Tortues Ninjas (Sbartacus - Hommes Lézards)",4,7,7,7,8,8,8,8]
["B","Pitiful Dwarves (Dweezil - Nains)",9,8,8,9,9,9,9,9]

{"sheet":"Calendrier","index":4,"n_rows":377,"n_cols":16,"rows_kept":377,"cut":false,"hidden":false,"merged":[[276,1,282,1],[276,2,282,2],[276,6,282,6],[276,7,282,7],[276,9,282,9],[276,10,282,10],[276,14,282,14],[276,15,282,15],[196,1,202,1],[196,2,202,2],[196,6,202,6],[196,7,202,7],[196,9,202,9],[196,10,202,10],[196,14,202,14],[196,15,202,15],[241,14,247,14],[255,1,261,1],[255,2,261,2],[255,6,261,6],[255,7,261,7],[255,9,261,9],[255,10,261,10],[210,15,216,15],[342,15,348,15],[314,15,320,15],[306,2,306,6],[306,10,306,14],[307,1,313,1],[307,2,313,2],[307,6,313,6],[307,7,313,7],[307,9,313,9],[307,10,313,10],[307,14,313,14],[349,15,355,15],[64,1,70,1],[64,2,70,2],[64,6,70,6],[64,7,70,7],[64,9,70,9],[64,10,70,10],[64,14,70,14],[64,15,70,15],[307,15,313,15],[314,1,320,1],[314,2,320,2],[314,6,320,6],[314,7,320,7],[314,9,320,9],[314,10,320,10],[314,14,320,14],[342,1,348,1],[342,2,348,2],[342,6,348,6],[342,7,348,7],[342,9,348,9],[342,10,348,10],[342,14,348,14],[57,15,63,15],[363,1,369,1],[363,2,369,2],[363,6,369,6],[363,7,369,7],[363,9,369,9],[363,10,369,10],[363,14,369,14],[363,15,369,15],[335,1,341,1],[335,2,341,2],[335,6,341,6],[335,7,341,7],[335,9,341,9],[335,10,341,10],[335,14,341,14],[335,15,341,15],[349,1,355,1],[349,2,355,2],[349,6,355,6],[349,7,355,7],[349,9,355,9],[349,10,355,10],[349,14,355,14],[356,1,362,1],[356,2,362,2],[356,6,362,6],[356,7,362,7],[356,9,362,9],[356,10,362,10],[356,14,362,14],[356,15,362,15],[321,1,327,1],[321,2,327,2],[321,6,327,6],[321,7,327,7],[321,9,327,9],[321,10,327,10],[321,14,327,14],[321,15,327,15],[328,1,334,1],[328,2,334,2],[328,6,334,6],[328,7,334,7],[328,9,334,9],[328,10,334,10],[328,14,334,14],[328,15,334,15],[290,1,296,1],[290,2,296,2],[290,6,296,6],[290,7,296,7],[290,9,296,9],[290,10,296,10],[290,14,296,14],[290,15,296,15],[233,2,233,6],[233,10,233,14],[234,1,240,1],[234,2,240,2],[234,6,240,6],[234,7,240,7],[234,9,240,9],[234,10,240,10],[241,10,247,10],[241,15,247,15],[248,1,254,1],[248,2,254,2],[248,6,254,6],[248,7,254,7],[248,9,254,9],[248,10,254,10],[144,15,150,15],[87,2,87,6],[255,14,261,14],[283,1,289,1],[283,2,289,2],[283,6,289,6],[283,7,289,7],[283,9,289,9],[283,10,289,10],[217,15,223,15],[130,1,136,1],[130,2,136,2],[130,6,136,6],[130,7,136,7],[130,9,136,9],[130,10,136,10],[130,14,136,14],[217,1,223,1],[217,2,223,2],[217,6,223,6],[217,7,223,7],[217,9,223,9],[217,10,223,10],[217,14,223,14],[6,2,6,6],[6,10,6,14],[10,2,10,6],[10,10,10,14],[14,2,14,6],[14,10,14,14],[15,1,21,1],[234,14,240,14],[234,15,240,15],[71,1,77,1],[71,2,77,2],[71,6,77,6],[71,7,77,7],[71,9,77,9],[71,10,77,10],[71,14,77,14],[71,15,77,15],[144,1,150,1],[144,2,150,2],[144,6,150,6],[144,7,150,7],[144,9,150,9],[144,10,150,10],[144,14,150,14],[1,2,1,6],[1,10,1,14],[2,2,2,6],[2,10,2,14],[3,2,3,6],[3,10,3,14],[4,2,4,6],[4,10,4,14],[5,2,5,6],[5,10,5,14],[9,2,9,6],[9,10,9,14],[7,2,7,6],[8,2,8,6],[7,10,7,14],[8,10,8,14],[87,10,87,14],[88,1,94,1],[88,2,94,2],[88,6,94,6],[88,7,94,7],[88,9,94,9],[88,10,94,10],[57,1,63,1],[57,2,63,2],[57,6,63,6],[57,7,63,7],[57,9,63,9],[57,10,63,10],[57,14,63,14],[29,1,35,1],[29,2,35,2],[29,6,35,6],[29,7,35,7],[15,15,21,15],[22,1,28,1],[22,2,28,2],[22,6,28,6],[22,7,28,7],[22,9,28,9],[22,10,28,10],[22,14,28,14],[22,15,28,15],[15,2,21,2],[15,6,21,6],[15,7,21,7],[15,9,21,9],[15,10,21,10],[15,14,21,14],[29,9,35,9],[29,10,35,10],[29,14,35,14],[29,15,35,15],[36,1,42,1],[36,2,42,2],[36,6,42,6],[36,7,42,7],[36,9,42,9],[36,10,42,10],[36,14,42,14],[36,15,42,15],[43,1,49,1],[43,2,49,2],[43,6,49,6],[43,7,49,7],[43,9,49,9],[43,10,49,10],[43,14,49,14],[43,15,49,15],[50,1,56,1],[50,2,56,2],[50,6,56,6],[50,7,56,7],[50,9,56,9],[50,10,56,10],[50,14,56,14],[50,15,56,15],[88,14,94,14],[88,15,94,15],[95,1,101,1],[95,2,101,2],[95,6,101,6],[95,7,101,7],[95,9,101,9],[95,10,101,10],[95,14,101,14],[95,15,101,15],[102,1,108,1],[102,2,108,2],[102,6,108,6],[102,7,108,7],[102,9,108,9],[102,10,108,10],[102,14,108,14],[102,15,108,15],[109,1,115,1],[109,2,115,2],[109,6,115,6],[109,7,115,7],[109,9,115,9],[109,10,115,10],[109,14,115,14],[109,15,115,15],[116,15,122,15],[137,1,143,1],[137,2,143,2],[137,6,143,6],[137,7,143,7],[137,9,143,9],[137,10,143,10],[137,14,143,14],[137,15,143,15],[123,1,129,1],[123,2,129,2],[123,6,129,6],[123,7,129,7],[123,9,129,9],[123,10,129,10],[123,14,129,14],[123,15,129,15],[130,15,136,15],[160,10,160,14],[161,1,167,1],[161,2,167,2],[161,6,167,6],[161,7,167,7],[161,9,167,9],[161,10,167,10],[161,14,167,14],[116,1,122,1],[116,2,122,2],[116,6,122,6],[116,7,122,7],[116,9,122,9],[116,10,122,10],[116,14,122,14],[160,2,160,6],[161,15,167,15],[168,1,174,1],[168,2,174,2],[168,6,174,6],[168,7,174,7],[168,9,174,9],[168,10,174,10],[168,14,174,14],[168,15,174,15],[175,15,181,15],[182,1,188,1],[182,2,188,2],[182,6,188,6],[182,7,188,7],[182,9,188,9],[182,10,188,10],[182,14,188,14],[182,15,188,15],[175,10,181,10],[175,14,181,14],[203,1,209,1],[203,2,209,2],[203,6,209,6],[203,7,209,7],[203,9,209,9],[203,10,209,10],[203,14,209,14],[203,15,209,15],[269,10,275,10],[269,14,275,14],[269,15,275,15],[248,14,254,14],[248,15,254,15],[241,1,247,1],[241,2,247,2],[241,6,247,6],[241,7,247,7],[241,9,247,9],[255,15,261,15],[262,1,268,1],[262,2,268,2],[262,6,268,6],[262,7,268,7],[262,9,268,9],[262,10,268,10],[262,14,268,14],[262,15,268,15],[78,15,84,15],[370,1,376,1],[370,2,376,2],[370,6,376,6],[370,7,376,7],[370,9,376,9],[370,10,376,10],[370,14,376,14],[370,15,376,15],[297,1,303,1],[297,2,303,2],[297,6,303,6],[297,7,303,7],[297,9,303,9],[297,10,303,10],[297,14,303,14],[297,15,303,15],[283,14,289,14],[283,15,289,15],[269,1,275,1],[269,2,275,2],[269,6,275,6],[269,7,275,7],[269,9,275,9],[224,15,230,15],[151,1,157,1],[151,2,157,2],[151,6,157,6],[151,7,157,7],[151,9,157,9],[151,10,157,10],[151,14,157,14],[151,15,157,15],[189,1,195,1],[189,2,195,2],[189,6,195,6],[189,7,195,7],[189,9,195,9],[189,10,195,10],[189,14,195,14],[189,15,195,15],[210,1,216,1],[210,2,216,2],[210,6,216,6],[210,7,216,7],[210,9,216,9],[210,10,216,10],[210,14,216,14],[11,2,11,6],[11,10,11,14],[224,1,230,1],[224,2,230,2],[224,6,230,6],[224,7,230,7],[224,9,230,9],[224,10,230,10],[224,14,230,14],[78,1,84,1],[78,2,84,2],[78,6,84,6],[78,7,84,7],[78,9,84,9],[78,10,84,10],[78,14,84,14],[175,1,181,1],[175,2,181,2],[175,6,181,6],[175,7,181,7],[175,9,181,9]]}
[]
[null,null,"Poule A",null,null,null,null,null,null,null,"Poule B"]
[null,null,{"$f":"VLOOKUP(\"Poule A-\"&1, Data!$A$2:$E$21,5,FALSE)","v":"Machinistes (Didier - Ogres)"},null,null,null,null,null,null,null,{"$f":"VLOOKUP(\"Poule B-\"&1, Data!$A$2:$E$21,5,FALSE)","v":"Salade Grecque (Aurelnatation - Elfes Sylvains)"}]
[null,null,{"$f":"VLOOKUP(\"Poule A-\"&2, Data!$A$2:$E$21,5,FALSE)","v":"Brochettes Quenelloises (Maryan - Bretonniens)"},null,null,null,null,null,null,null,{"$f":"VLOOKUP(\"Poule B-\"&2, Data!$A$2:$E$21,5,FALSE)","v":"Chaos bang (Donkydoc - Chaos pact)"}]
[null,null,{"$f":"VLOOKUP(\"Poule A-\"&3, Data!$A$2:$E$21,5,FALSE)","v":"Valhalla Unicorns (Kirou - Nordiques)"},null,null,null,null,null,null,null,{"$f":"VLOOKUP(\"Poule B-\"&3, Data!$A$2:$E$21,5,FALSE)","v":"UIPP (Jordel - Nurgle)"}]
[null,null,{"$f":"VLOOKUP(\"Poule A-\"&4, Data!$A$2:$E$21,5,FALSE)","v":"Seattle Seaorcs (Battleaxe - Orcs)"},null,null,null,null,null,null,null,{"$f":"VLOOKUP(\"Poule B-\"&4, Data!$A$2:$E$21,5,FALSE)","v":"Shadow Unicorns (Guldhan - Elfes Noires)"}]
[null,null,{"$f":"VLOOKUP(\"Poule A-\"&5, Data!$A$2:$E$21,5,FALSE)","v":"Karak Ungor Nervous Ulcers (Winny - Gobs)"},null,null,null,null,null,null,null,{"$f":"VLOOKUP(\"Poule B-\"&5, Data!$A$2:$E$21,5,FALSE)","v":"Thunder II (Moute - Nains du chaos)"}]
[null,null,{"$f":"VLOOKUP(\"Poule A-\"&6, Data!$A$2:$E$21,5,FALSE)","v":"Goat People (Vanhu - Chaos)"},null,null,null,null,null,null,null,{"$f":"VLOOKUP(\"Poule B-\"&6, Data!$A$2:$E$21,5,FALSE)","v":"Canonniers (Rovieli - Humains)"}]
[null,null,{"$f":"VLOOKUP(\"Poule A-\"&7, Data!$A$2:$E$21,5,FALSE)","v":"Courreurs de Malepierre (Snagrot - Skavens)"},null,null,null,null,null,null,null,{"$f":"VLOOKUP(\"Poule B-\"&7, Data!$A$2:$E$21,5,FALSE)","v":"Pointy Pretenders (GuttedRunner - Hauts Elfes)"}]
[null,null,{"$f":"VLOOKUP(\"Poule A-\"&8, Data!$A$2:$E$21,5,FALSE)","v":"MLF New Age (BaptSalamander - MV)"},null,null,null,null,null,null,null,{"$f":"VLOOKUP(\"Poule B-\"&8, Data!$A$2:$E$21,5,FALSE)","v":"Skablin Scavengers (Jabba - Bas fonds)"}]
[null,null,{"$f":"VLOOKUP(\"Poule A-\"&9, Data!$A$2:$E$21,5,FALSE)","v":"Merdouilles en folie ! (Nard - Gobs)"},null,null,null,null,null,null,null,{"$f":"VLOOKUP(\"Poule B-\"&9, Data!$A$2:$E$21,5,FALSE)","v":"Kislev Flying Circus (Peco - Slanns)"}]
[null,null,{"$f":"VLOOKUP(\"Poule A-\"&10, Data!$A$2:$E$21,5,FALSE)","v":"Arl'quinquin (ManX - Elfes Pros)"},null,null,null,null,null,null,null,{"$f":"VLOOKUP(\"Poule B-\"&10, Data!$A$2:$E$21,5,FALSE)","v":"KbbK (Sebnobi - Hommes lezards)"}]
[]
[]
[null,null,"Journée 1",null,null,null,null,null,null,null,"Journée 2"]
[null,"A",{"$f":"C3","v":"Machinistes (Didier - Ogres)"},0,"TD",1,{"$f":"C12","v":"Arl'quinquin (ManX - Elfes Pros)"},"B",null,"A",{"$f":"C3","v":"Machinistes (Didier - Ogres)"},0,"TD",0,{"$f":"C4","v":"Brochettes Quenelloises (Maryan - Bretonniens)"},"B"]
[null,null,null,0,"Passe",1,null,null,null,null,null,0,"Passe",0]
[null,null,null,0,"Interception",0,null,null,null,null,null,0,"Interception",0]
[null,null,null,3,"Sortie",1,null,null,null,null,null,4,"Sortie",3]
[null,null,null,0,"Agression",0,null,null,null,null,null,0,"Agression",0]
[null,null,null,0,"Exclusion",0,null,null,null,null,null,0,"Exclusion",0]
[null,null,null,8000,"Public",7000,null,null,null,null,null,9000,"Public",5000]
[null,"A",{"$f":"C4","v":"Brochettes Quenelloises (Maryan - Bretonniens)"},1,"TD",2,{"$f":"C5","v":"Valhalla Unicorns (Kirou - Nordiques)"},"B",null,"A",{"$f":"C7","v":"Karak Ungor Nervous Ulcers (Winny - Gobs)"},2,"TD",1,{"$f":"C12","v":"Arl'quinquin (ManX - Elfes Pros)"},"B"]
[null,null,null,0,"Passe",0,null,null,null,null,null,0,"Passe",2]
[null,null,null,0,"Interception",0,null,null,null,null,null,0,"Interception",0]
[null,null,null,1,"Sortie",4,null,null,null,null,null,1,"Sortie",3]
[null,null,null,0,"Agression",1,null,null,null,null,null,0,"Agression",0]
[null,null,null,0,"Exclusion",0,null,null,null,null,null,0,"Exclusion",0]
[null,null,null,3000,"Public",9000,null,null,null,null,null,12000,"Public",11000]
[null,"A",{"$f":"C6","v":"Seattle Seaorcs (Battleaxe - Orcs)"},2,"TD",0,{"$f":"C7","v":"Karak Ungor Nervous Ulcers (Winny - Gobs)"},"B",null,"A",{"$f":"C5","v":"Valhalla Unicorns (Kirou - Nordiques)"},2,"TD",0,{"$f":"C8","v":"Goat People (Vanhu - Chaos)"},"B"]
[null,null,null,0,"Passe",1,null,null,null,null,null,0,"Passe",0]
[null,null,null,0,"Interception",0,null,null,null,null,null,0,"Interception",0]
[null,null,null,5,"Sortie",3,null,null,null,null,null,2,"Sortie",4]
[null,null,null,0,"Agression",0,null,null,null,null,null,1,"Agression",0]
[null,null,null,0,"Exclusion",0,null,null,null,null,null,0,"Exclusion",0]
[null,null,null,9000,"Public",7000,null,null,null,null,null,13000,"Public",4000]
[null,"A",{"$f":"C8","v":"Goat People (Vanhu - Chaos)"},2,"TD",0,{"$f":"C9","v":"Courreurs de Malepierre (Snagrot - Skavens)"},"B",null,"A",{"$f":"C11","v":"Merdouilles en folie ! (Nard - Gobs)"},1,"TD",0,{"$f":"C6","v":"Seattle Seaorcs (Battleaxe - Orcs)"},"B"]
[null,null,null,0,"Passe",1,null,null,null,null,null,0,"Passe",0]
[null,null,null,0,"Interception",0,null,null,null,null,null,0,"Interception",0]
[null,null,null,2,"Sortie",0,null,null,null,null,null,3,"Sortie",1]
[null,null,null,0,"Agression",0,null,null,null,null,null,1,"Agression",0]
[null,null,null,0,"Exclusion",0,null,null,null,null,null,0,"Exclusion",0]
[null,null,null,8000,"Public",6000,null,null,null,null,null,9000,"Public",10000]
[null,"A",{"$f":"C10","v":"MLF New Age (BaptSalamander - MV)"},0,"TD",2,{"$f":"C11","v":"Merdouilles en folie ! (Nard - Gobs)"},"B",null,"A",{"$f":"C9","v":"Courreurs de Malepierre (Snagrot - Skavens)"},2,"TD",0,{"$f":"C10","v":"MLF New Age (BaptSalamander - MV)"},"B"]
[null,null,null,0,"Passe",0,null,null,null,null,null,0,"Passe",0]
[null,null,null,0,"Interception",0,null,null,null,null,null,0,"Interception",0]
[null,null,null,0,"Sortie",0,null,null,null,null,null,0,"Sortie",0]
[null,null,null,0,"Agression",0,null,null,null,null,null,0,"Agression",0]
[null,null,null,0,"Exclusion",0,null,null,null,null,null,0,"Exclusion",0]
[null,null,null,0,"Public",0,null,null,null,null,null,0,"Public",0]
[null,"A",{"$f":"K3","v":"Salade Grecque (Aurelnatation - Elfes Sylvains)"},3,"TD",1,{"$f":"K12","v":"KbbK (Sebnobi - Hommes lezards)"},"B",null,"A",{"$f":"K3","v":"Salade Grecque (Aurelnatation - Elfes Sylvains)"},1,"TD",1,{"$f":"K5","v":"UIPP (Jordel - Nurgle)"},"B"]
[null,null,null,2,"Passe",0,null,null,null,null,null,0,"Passe",0]
[null,null,null,0,"Interception",0,null,null,null,null,null,0,"Interception",0]
[null,null,null,0,"Sortie",2,null,null,null,null,null,2,"Sortie",1]
[null,null,null,0,"Agression",1,null,null,null,null,null,0,"Agression",0]
[null,null,null,0,"Exclusion",0,null,null,null,null,null,0,"Exclusion",1]
[null,null,null,5000,"Public",10000,null,null,null,null,null,7000,"Public",10000]
[null,"A",{"$f":"K4","v":"Chaos bang (Donkydoc - Chaos pact)"},0,"TD",1,{"$f":"K5","v":"UIPP (Jordel - Nurgle)"},"B",null,"A",{"$f":"K6","v":"Shadow Unicorns (Guldhan - Elfes Noires)"},2,"TD",1,{"$f":"K12","v":"KbbK (Sebnobi - Hommes lezards)"},"B"]
[null,null,null,0,"Passe",0,null,null,null,null,null,2,"Passe",0]
[null,null,null,0,"Interception",0,null,null,null,null,null,0,"Interception",0]
[null,null,null,3,"Sortie",1,null,null,null,null,null,2,"Sortie",1]
[null,null,null,0,"Agression",0,null,null,null,null,null,0,"Agression",0]
[null,null,null,0,"Exclusion",0,null,null,null,null,null,0,"Exclusion",1]
[null,null,null,4000,"Public",11000,null,null,null,null,null,5000,"Public",12000]
[null,"A",{"$f":"K7","v":"Thunder II (Moute - Nains du chaos)"},0,"TD",1,{"$f":"K6","v":"Shadow Unicorns (Guldhan - Elfes Noires)"},"B",null,"A",{"$f":"K8","v":"Canonniers (Rovieli - Humains)"},1,"TD",1,{"$f":"K4","v":"Chaos bang (Donkydoc - Chaos pact)"},"B"]
[null,null,null,0,"Passe",2,null,null,null,null,null,2,"Passe",0]
[null,null,null,0,"Interception",0,null,null,null,null,null,0,"Interception",0]
[null,null,null,0,"Sortie",1,null,null,null,null,null,0,"Sortie",2]
[null,null,null,0,"Agression",0,null,null,null,null,null,0,"Agression",0]
[null,null,null,0,"Exclusion",0,null,null,null,null,null,0,"Exclusion",0]
[null,null,null,7000,"Public",7000,null,null,null,null,null,8000,"Public",7000]
[null,"A",{"$f":"K8","v":"Canonniers (Rovieli - Humains)"},0,"TD",4,{"$f":"K9","v":"Pointy Pretenders (GuttedRunner - Hauts Elfes)"},"B",null,"A",{"$f":"K7","v":"Thunder II (Moute - Nains du chaos)"},2,"TD",0,{"$f":"K11","v":"Kislev Flying Circus (Peco - Slanns)"},"B"]
[null,null,null,0,"Passe",1,null,null,null,null,null,0,"Passe",4]
[null,null,null,0,"Interception",0,null,null,null,null,null,0,"Interception",0]
[null,null,null,0,"Sortie",5,null,null,null,null,null,4,"Sortie",0]
[null,null,null,0,"Agression",0,null,null,null,null,null,0,"Agression",0]
[null,null,null,0,"Exclusion",0,null,null,null,null,null,0,"Exclusion",0]
[null,null,null,5000,"Public",6000,null,null,null,null,null,0,"Public",0]
[null,"A",{"$f":"K10","v":"Skablin Scavengers (Jabba - Bas fonds)"},0,"TD",1,{"$f":"K11","v":"Kislev Flying Circus (Peco - Slanns)"},"B",null,"A",{"$f":"K9","v":"Pointy Pretenders (GuttedRunner - Hauts Elfes)"},1,"TD",1,{"$f":"K10","v":"Skablin Scavengers (Jabba - Bas fonds)"},"B"]
[null,null,null,0,"Passe",1,null,null,null,null,null,1,"Passe",0]
[null,null,null,0,"Interception",0,null,null,null,null,null,0,"Interception",0]
[null,null,null,3,"Sortie",1,null,null,null,null,null,0,"Sortie",0]
[null,null,null,0,"Agression",0,null,null,null,null,null,0,"Agression",0]
[null,null,null,0,"Exclusion",0,null,null,null,null,null,0,"Exclusion",0]
[null,null,null,5000,"Public",5000,null,null,null,null,null,6000,"Public",4000]
[]
[]
[null,null,"Journée 3",null,null,null,null,null,null,null,"Journée 4"]
[null,"A",{"$f":"C7","v":"Karak Ungor Nervous Ulcers (Winny - Gobs)"},0,"TD",2,{"$f":"C3","v":"Machinistes (Didier - Ogres)"},"B",null,"A",{"$f":"C3","v":"Machinistes (Didier - Ogres)"},1,"TD",0,{"$f":"C8","v":"Goat People (Vanhu - Chaos)"},"B"]
[null,null,null,2,"Passe",0,null,null,null,null,null,0,"Passe",0]
[null,null,null,0,"Interception",0,null,null,null,null,null,0,"Interception",0]
[null,null,null,3,"Sortie",3,null,null,null,null,null,2,"Sortie",2]
[null,null,null,0,"Agression",1,null,null,null,null,null,0,"Agression",0]
[null,null,null,0,"Exclusion",0,null,null,null,null,null,0,"Exclusion",0]
[null,null,null,4000,"Public",7000,null,null,null,null,null,null,"Public"]
[null,"A",{"$f":"C8","v":"Goat People (Vanhu - Chaos)"},3,"TD",0,{"$f":"C4","v":"Brochettes Quenelloises (Maryan - Bretonniens)"},"B",null,"A",{"$f":"C7","v":"Karak Ungor Nervous Ulcers (Winny - Gobs)"},0,"TD",1,{"$f":"C11","v":"Merdouilles en folie ! (Nard - Gobs)"},"B"]
[null,null,null,0,"Passe",3,null,null,null,null,null,0,"Passe",0]
[null,null,null,0,"Interception",0,null,null,null,null,null,0,"Interception",0]
[null,null,null,3,"Sortie",0,null,null,null,null,null,1,"Sortie",2]
[null,null,null,0,"Agression",0,null,null,null,null,null,0,"Agression",0]
[null,null,null,0,"Exclusion",0,null,null,null,null,null,0,"Exclusion",0]
[null,null,null,9000,"Public",7000,null,null,null,null,null,null,"Public"]
[null,"A",{"$f":"C12","v":"Arl'quinquin (ManX - Elfes Pros)"},2,"TD",1,{"$f":"C11","v":"Merdouilles en folie ! (Nard - Gobs)"},"B",null,"A",{"$f":"C10","v":"MLF New Age (BaptSalamander - MV)"},0,"TD",2,{"$f":"C4","v":"Brochettes Quenelloises (Maryan - Bretonniens)"},"B"]
[null,null,null,1,"Passe",0,null,null,null,null,null,0,"Passe",0]
[null,null,null,0,"Interception",0,null,null,null,null,null,0,"Interception",0]
[null,null,null,2,"Sortie",2,null,null,null,null,null,0,"Sortie",0]
[null,null,null,0,"Agression",0,null,null,null,null,null,0,"Agression",0]
[null,null,null,0,"Exclusion",0,null,null,null,null,null,0,"Exclusion",0]
[null,null,null,5000,"Public",8000,null,null,null,null,null,0,"Public",0]
[null,"A",{"$f":"C5","v":"Valhalla Unicorns (Kirou - Nordiques)"},2,"TD",0,{"$f":"C10","v":"MLF New Age (BaptSalamander - MV)"},"B",null,"A",{"$f":"C9","v":"Courreurs de Malepierre (Snagrot - Skavens)"},2,"TD",1,{"$f":"C12","v":"Arl'quinquin (ManX - Elfes Pros)"},"B"]
[null,null,null,0,"Passe",0,null,null,null,null,null,0,"Passe",0]
[null,null,null,0,"Interception",0,null,null,null,null,null,0,"Interception",0]
[null,null,null,0,"Sortie",0,null,null,null,null,null,0,"Sortie",1]
[null,null,null,0,"Agression",0,null,null,null,null,null,0,"Agression",0]
[null,null,null,0,"Exclusion",0,null,null,null,null,null,0,"Exclusion",0]
[null,null,null,0,"Public",0,null,null,null,null,null,null,"Public"]
[null,"A",{"$f":"C6","v":"Seattle Seaorcs (Battleaxe - Orcs)"},2,"TD",0,{"$f":"C9","v":"Courreurs de Malepierre (Snagrot - Skavens)"},"B",null,"A",{"$f":"C6","v":"Seattle Seaorcs (Battleaxe - Orcs)"},0,"TD",4,{"$f":"C5","v":"Valhalla Unicorns (Kirou - Nordiques)"},"B"]
[null,null,null,0,"Passe",1,null,null,null,null,null,0,"Passe",0]
[null,null,null,0,"Interception",0,null,null,null,null,null,0,"Interception",0]
[null,null,null,3,"Sortie",2,null,null,null,null,null,1,"Sortie",3]
[null,null,null,0,"Agression",0,null,null,null,null,null,0,"Agression",3]
[null,null,null,0,"Exclusion",0,null,null,null,null,null,0,"Exclusion",0]
[null,null,null,15000,"Public",7000,null,null,null,null,null,11000,"Public",13000]
[null,"A",{"$f":"K6","v":"Shadow Unicorns (Guldhan - Elfes Noires)"},1,"TD",2,{"$f":"K3","v":"Salade Grecque (Aurelnatation - Elfes Sylvains)"},"B",null,"A",{"$f":"K8","v":"Canonniers (Rovieli - Humains)"},1,"TD",3,{"$f":"K3","v":"Salade Grecque (Aurelnatation - Elfes Sylvains)"},"B"]
[null,null,null,2,"Passe",1,null,null,null,null,null,3,"Passe",1]
[null,null,null,0,"Interception",0,null,null,null,null,null,0,"Interception",0]
[null,null,null,0,"Sortie",1,null,null,null,null,null,2,"Sortie",2]
[null,null,null,0,"Agression",0,null,null,null,null,null,0,"Agression",0]
[null,null,null,0,"Exclusion",0,null,null,null,null,null,0,"Exclusion",0]
[null,null,null,11000,"Public",8000,null,null,null,null,null,null,"Public"]
[null,"A",{"$f":"K5","v":"UIPP (Jordel - Nurgle)"},0,"TD",0,{"$f":"K8","v":"Canonniers (Rovieli - Humains)"},"B",null,"A",{"$f":"K11","v":"Kislev Flying Circus (Peco - Slanns)"},1,"TD",1,{"$f":"K6","v":"Shadow Unicorns (Guldhan - Elfes Noires)"},"B"]
[null,null,null,0,"Passe",0,null,null,null,null,null,1,"Passe",2]
[null,null,null,0,"Interception",0,null,null,null,null,null,0,"Interception",0]
[null,null,null,4,"Sortie",2,null,null,null,null,null,0,"Sortie",1]
[null,null,null,1,"Agression",1,null,null,null,null,null,0,"Agression",0]
[null,null,null,0,"Exclusion",0,null,null,null,null,null,0,"Exclusion",0]
[null,null,null,10000,"Public",7000,null,null,null,null,null,9000,"Public",9000]
[null,"A",{"$f":"K12","v":"KbbK (Sebnobi - Hommes lezards)"},2,"TD",0,{"$f":"K11","v":"Kislev Flying Circus (Peco - Slanns)"},"B",null,"A",{"$f":"K10","v":"Skablin Scavengers (Jabba - Bas fonds)"},1,"TD",1,{"$f":"K5","v":"UIPP (Jordel - Nurgle)"},"B"]
[null,null,null,0,"Passe",0,null,null,null,null,null,1,"Passe",1]
[null,null,null,0,"Interception",0,null,null,null,null,null,0,"Interception",0]
[null,null,null,0,"Sortie",0,null,null,null,null,null,1,"Sortie",5]
[null,null,null,0,"Agression",0,null,null,null,null,null,0,"Agression",0]
[null,null,null,0,"Exclusion",0,null,null,null,null,null,0,"Exclusion",0]
[null,null,null,0,"Public",0,null,null,null,null,null,9000,"Public",8000]
[null,"A",{"$f":"K10","v":"Skablin Scavengers (Jabba - Bas fonds)"},2,"TD",0,{"$f":"K4","v":"Chaos bang (Donkydoc - Chaos pact)"},"B",null,"A",{"$f":"K9","v":"Pointy Pretenders (GuttedRunner - Hauts Elfes)"},1,"TD",2,{"$f":"K12","v":"KbbK (Sebnobi - Hommes lezards)"},"B"]
[null,null,null,0,"Passe",0,null,null,null,null,null,2,"Passe",0]
[null,null,null,0,"Interception",0,null,null,null,null,null,0,"Interception",0]
[null,null,null,2,"Sortie",4,null,null,null,null,null,0,"Sortie",3]
[null,null,null,0,"Agression",0,null,null,null,null,null,0,"Agression",0]
[null,null,null,0,"Exclusion",0,null,null,null,null,null,0,"Exclusion",0]
[null,null,null,8000,"Public",6000,null,null,null,null,null,10000,"Public",7000]
[null,"A",{"$f":"K7","v":"Thunder II (Moute - Nains du chaos)"},2,"TD",1,{"$f":"K9","v":"Pointy Pretenders (GuttedRunner - Hauts Elfes)"},"B",null,"A",{"$f":"K7","v":"Thunder II (Moute - Nains du chaos)"},1,"TD",0,{"$f":"K4","v":"Chaos bang (Donkydoc - Chaos pact)"},"B"]
[null,null,null,0,"Passe",4,null,null,null,null,null,0,"Passe",1]
[null,null,null,0,"Interception",0,null,null,null,null,null,0,"Interception",0]
[null,null,null,3,"Sortie",0,null,null,null,null,null,1,"Sortie",1]
[null,null,null,2,"Agression",0,null,null,null,null,null,0,"Agression",0]
[null,null,null,0,"Exclusion",0,null,null,null,null,null,0,"Exclusion",0]
[null,null,null,7000,"Public",9000,null,null,null,null,null,10000,"Public",6000]
[]
[]
[null,null,"Journée 5",null,null,null,null,null,null,null,"Journée 6"]
[null,"A",{"$f":"C3","v":"Machinistes (Didier - Ogres)"},1,"TD",0,{"$f":"C11","v":"Merdouilles en folie ! (Nard - Gobs)"},"B",null,"A",null,null,"TD",null,null,"B"]
[null,null,null,0,"Passe",0,null,null,null,null,null,null,"Passe"]
[null,null,null,0,"Interception",0,null,null,null,null,null,null,"Interception"]
[null,null,null,2,"Sortie",0,null,null,null,null,null,null,"Sortie"]
[null,null,null,0,"Agression",0,null,null,null,null,null,null,"Agression"]
[null,null,null,0,"Exclusion",0,null,null,null,null,null,null,"Exclusion"]
[null,null,null,11000,"Public",5000,null,null,null,null,null,null,"Public"]
[null,"A",{"$f":"C10","v":"MLF New Age (BaptSalamander - MV)"},0,"TD",2,{"$f":"C8","v":"Goat People (Vanhu - Chaos)"},"B",null,"A",null,null,"TD",null,null,"B"]
[null,null,null,0,"Passe",0,null,null,null,null,null,null,"Passe"]
[null,null,null,0,"Interception",0,null,null,null,null,null,null,"Interception"]
[null,null,null,0,"Sortie",0,null,null,null,null,null,null,"Sortie"]
[null,null,null,0,"Agression",0,null,null,null,null,null,null,"Agression"]
[null,null,null,0,"Exclusion",0,null,null,null,null,null,null,"Exclusion"]
[null,null,null,0,"Public",0,null,null,null,null,null,null,"Public"]
[null,"A",{"$f":"C9","v":"Courreurs de Malepierre (Snagrot - Skavens)"},1,"TD",0,{"$f":"C7","v":"Karak Ungor Nervous Ulcers (Winny - Gobs)"},"B",null,"A",null,null,"TD",null,null,"B"]
[null,null,null,1,"Passe",1,null,null,null,null,null,null,"Passe"]
[null,null,null,0,"Interception",0,null,null,null,null,null,null,"Interception"]
[null,null,null,5,"Sortie",1,null,null,null,null,null,null,"Sortie"]
[null,null,null,0,"Agression",0,null,null,null,null,null,null,"Agression"]
[null,null,null,0,"Exclusion",0,null,null,null,null,null,null,"Exclusion"]
[null,null,null,9000,"Public",12000,null,null,null,null,null,null,"Public"]
[null,"A",{"$f":"C6","v":"Seattle Seaorcs (Battleaxe - Orcs)"},2,"TD",1,{"$f":"C4","v":"Brochettes Quenelloises (Maryan - Bretonniens)"},"B",null,"A",null,null,"TD",null,null,"B"]
[null,null,null,0,"Passe",0,null,null,null,null,null,null,"Passe"]
[null,null,null,0,"Interception",0,null,null,null,null,null,null,"Interception"]
[null,null,null,2,"Sortie",1,null,null,null,null,null,null,"Sortie"]
[null,null,null,0,"Agression",0,null,null,null,null,null,null,"Agression"]
[null,null,null,0,"Exclusion",0,null,null,null,null,null,null,"Exclusion"]
[null,null,null,6000,"Public",8000,null,null,null,null,null,null,"Public"]
[null,"A",{"$f":"C5","v":"Valhalla Unicorns (Kirou - Nordiques)"},1,"TD",2,{"$f":"C12","v":"Arl'quinquin (ManX - Elfes Pros)"},"B",null,"A",null,null,"TD",null,null,"B"]
[null,null,null,0,"Passe",2,null,null,null,null,null,null,"Passe"]
[null,null,null,0,"Interception",0,null,null,null,null,null,null,"Interception"]
[null,null,null,4,"Sortie",0,null,null,null,null,null,null,"Sortie"]
[null,null,null,0,"Agression",0,null,null,null,null,null,null,"Agression"]
[null,null,null,0,"Exclusion",0,null,null,null,null,null,null,"Exclusion"]
[null,null,null,10000,"Public",12000,null,null,null,null,null,null,"Public"]
[null,"A",{"$f":"K11","v":"Kislev Flying Circus (Peco - Slanns)"},1,"TD",2,{"$f":"K3","v":"Salade Grecque (Aurelnatation - Elfes Sylvains)"},"B",null,"A",null,null,"TD",null,null,"B"]
[null,null,null,1,"Passe",1,null,null,null,null,null,null,"Passe"]
[null,null,null,0,"Interception",0,null,null,null,null,null,null,"Interception"]
[null,null,null,0,"Sortie",2,null,null,null,null,null,null,"Sortie"]
[null,null,null,0,"Agression",0,null,null,null,null,null,null,"Agression"]
[null,null,null,0,"Exclusion",0,null,null,null,null,null,null,"Exclusion"]
[null,null,null,10000,"Public",13000,null,null,null,null,null,null,"Public"]
[null,"A",{"$f":"K8","v":"Canonniers (Rovieli - Humains)"},1,"TD",2,{"$f":"K10","v":"Skablin Scavengers (Jabba - Bas fonds)"},"B",null,"A",null,null,"TD",null,null,"B"]
[null,null,null,1,"Passe",0,null,null,null,null,null,null,"Passe"]
[null,null,null,0,"Interception",0,null,null,null,null,null,null,"Interception"]
[null,null,null,6,"Sortie",4,null,null,null,null,null,null,"Sortie"]
[null,null,null,0,"Agression",0,null,null,null,null,null,null,"Agression"]
[null,null,null,0,"Exclusion",0,null,null,null,null,null,null,"Exclusion"]
[null,null,null,6000,"Public",5000,null,null,null,null,null,null,"Public"]
[null,"A",{"$f":"K9","v":"Pointy Pretenders (GuttedRunner - Hauts Elfes)"},1,"TD",2,{"$f":"K6","v":"Shadow Unicorns (Guldhan - Elfes Noires)"},"B",null,"A",null,null,"TD",null,null,"B"]
[null,null,null,1,"Passe",1,null,null,null,null,null,null,"Passe"]
[null,null,null,0,"Interception",0,null,null,null,null,null,null,"Interception"]
[null,null,null,2,"Sortie",0,null,null,null,null,null,null,"Sortie"]
[null,null,null,0,"Agression",0,null,null,null,null,null,null,"Agression"]
[null,null,null,0,"Exclusion",0,null,null,null,null,null,null,"Exclusion"]
[null,null,null,8000,"Public",12000,null,null,null,null,null,null,"Public"]
[null,"A",{"$f":"K7","v":"Thunder II (Moute - Nains du chaos)"},1,"TD",0,{"$f":"K5","v":"UIPP (Jordel - Nurgle)"},"B",null,"A",null,null,"TD",null,null,"B"]
[null,null,null,0,"Passe",2,null,null,null,null,null,null,"Passe"]
[null,null,null,0,"Interception",0,null,null,null,null,null,null,"Interception"]
[null,null,null,1,"Sortie",1,null,null,null,null,null,null,"Sortie"]
[null,null,null,0,"Agression",0,null,null,null,null,null,null,"Agression"]
[null,null,null,0,"Exclusion",0,null,null,null,null,null,null,"Exclusion"]
[null,null,null,15000,"Public",8000,null,null,null,null,null,null,"Public"]
[null,"A",{"$f":"K12","v":"KbbK (Sebnobi - Hommes lezards)"},1,"TD",0,{"$f":"K4","v":"Chaos bang (Donkydoc - Chaos pact)"},"B",null,"A",null,null,"TD",null,null,"B"]
[null,null,null,0,"Passe",2,null,null,null,null,null,null,"Passe"]
[null,null,null,0,"Interception",0,null,null,null,null,null,null,"Interception"]
[null,null,null,2,"Sortie",0,null,null,null,null,null,null,"Sortie"]
[null,null,null,0,"Agression",0,null,null,null,null,null,null,"Agression"]
[null,null,null,0,"Exclusion",0,null,null,null,null,null,null,"Exclusion"]
[null,null,null,11000,"Public",6000,null,null,null,null,null,null,"Public"]
[]
[]
[null,null,"Journée 7",null,null,null,null,null,null,null,"Journée 8"]
[null,"A",null,null,"TD",null,null,"B",null,"A",null,null,"TD",null,null,"B"]
[null,null,null,null,"Passe",null,null,null,null,null,null,null,"Passe"]
[null,null,null,null,"Interception",null,null,null,null,null,null,null,"Interception"]
[null,null,null,null,"Sortie",null,null,null,null,null,null,null,"Sortie"]
[null,null,null,null,"Agression",null,null,null,null,null,null,null,"Agression"]
[null,null,null,null,"Exclusion",null,null,null,null,null,null,null,"Exclusion"]
[null,null,null,null,"Public",null,null,null,null,null,null,null,"Public"]
[null,"A",null,null,"TD",null,null,"B",null,"A",null,null,"TD",null,null,"B"]
[null,null,null,null,"Passe",null,null,null,null,null,null,null,"Passe"]
[null,null,null,null,"Interception",null,null,null,null,null,null,null,"Interception"]
[null,null,null,null,"Sortie",null,null,null,null,null,null,null,"Sortie"]
[null,null,null,null,"Agression",null,null,null,null,null,null,null,"Agression"]
[null,null,null,null,"Exclusion",null,null,null,null,null,null,null,"Exclusion"]
[null,null,null,null,"Public",null,null,null,null,null,null,null,"Public"]
[null,"A",null,null,"TD",null,null,"B",null,"A",null,null,"TD",null,null,"B"]
[null,null,null,null,"Passe",null,null,null,null,null,null,null,"Passe"]
[null,null,null,null,"Interception",null,null,null,null,null,null,null,"Interception"]
[null,null,null,null,"Sortie",null,null,null,null,null,null,null,"Sortie"]
[null,null,null,null,"Agression",null,null,null,null,null,null,null,"Agression"]
[null,null,null,null,"Exclusion",null,null,null,null,null,null,null,"Exclusion"]
[null,null,null,null,"Public",null,null,null,null,null,null,null,"Public"]
[null,"A",null,null,"TD",null,null,"B",null,"A",null,null,"TD",null,null,"B"]
[null,null,null,null,"Passe",null,null,null,null,null,null,null,"Passe"]
[null,null,null,null,"Interception",null,null,null,null,null,null,null,"Interception"]
[null,null,null,null,"Sortie",null,null,null,null,null,null,null,"Sortie"]
[null,null,null,null,"Agression",null,null,null,null,null,null,null,"Agression"]
[null,null,null,null,"Exclusion",null,null,null,null,null,null,null,"Exclusion"]
[null,null,null,null,"Public",null,null,null,null,null,null,null,"Public"]
[null,"A",null,null,"TD",null,null,"B",null,"A",null,null,"TD",null,null,"B"]
[null,null,null,null,"Passe",null,null,null,null,null,null,null,"Passe"]
[null,null,null,null,"Interception",null,null,null,null,null,null,null,"Interception"]
[null,null,null,null,"Sortie",null,null,null,null,null,null,null,"Sortie"]
[null,null,null,null,"Agression",null,null,null,null,null,null,null,"Agression"]
[null,null,null,null,"Exclusion",null,null,null,null,null,null,null,"Exclusion"]
[null,null,null,null,"Public",null,null,null,null,null,null,null,"Public"]
[null,"A",null,null,"TD",null,null,"B",null,"A",null,null,"TD",null,null,"B"]
[null,null,null,null,"Passe",null,null,null,null,null,null,null,"Passe"]
[null,null,null,null,"Interception",null,null,null,null,null,null,null,"Interception"]
[null,null,null,null,"Sortie",null,null,null,null,null,null,null,"Sortie"]
[null,null,null,null,"Agression",null,null,null,null,null,null,null,"Agression"]
[null,null,null,null,"Exclusion",null,null,null,null,null,null,null,"Exclusion"]
[null,null,null,null,"Public",null,null,null,null,null,null,null,"Public"]
[null,"A",null,null,"TD",null,null,"B",null,"A",null,null,"TD",null,null,"B"]
[null,null,null,null,"Passe",null,null,null,null,null,null,null,"Passe"]
[null,null,null,null,"Interception",null,null,null,null,null,null,null,"Interception"]
[null,null,null,null,"Sortie",null,null,null,null,null,null,null,"Sortie"]
[null,null,null,null,"Agression",null,null,null,null,null,null,null,"Agression"]
[null,null,null,null,"Exclusion",null,null,null,null,null,null,null,"Exclusion"]
[null,null,null,null,"Public",null,null,null,null,null,null,null,"Public"]
[null,"A",null,null,"TD",null,null,"B",null,"A",null,null,"TD",null,null,"B"]
[null,null,null,null,"Passe",null,null,null,null,null,null,null,"Passe"]
[null,null,null,null,"Interception",null,null,null,null,null,null,null,"Interception"]
[null,null,null,null,"Sortie",null,null,null,null,null,null,null,"Sortie"]
[null,null,null,null,"Agression",null,null,null,null,null,null,null,"Agression"]
[null,null,null,null,"Exclusion",null,null,null,null,null,null,null,"Exclusion"]
[null,null,null,null,"Public",null,null,null,null,null,null,null,"Public"]
[null,"A",null,null,"TD",null,null,"B",null,"A",null,null,"TD",null,null,"B"]
[null,null,null,null,"Passe",null,null,null,null,null,null,null,"Passe"]
[null,null,null,null,"Interception",null,null,null,null,null,null,null,"Interception"]
[null,null,null,null,"Sortie",null,null,null,null,null,null,null,"Sortie"]
[null,null,null,null,"Agression",null,null,null,null,null,null,null,"Agression"]
[null,null,null,null,"Exclusion",null,null,null,null,null,null,null,"Exclusion"]
[null,null,null,null,"Public",null,null,null,null,null,null,null,"Public"]
[null,"A",null,null,"TD",null,null,"B",null,"A",null,null,"TD",null,null,"B"]
[null,null,null,null,"Passe",null,null,null,null,null,null,null,"Passe"]
[null,null,null,null,"Interception",null,null,null,null,null,null,null,"Interception"]
[null,null,null,null,"Sortie",null,null,null,null,null,null,null,"Sortie"]
[null,null,null,null,"Agression",null,null,null,null,null,null,null,"Agression"]
[null,null,null,null,"Exclusion",null,null,null,null,null,null,null,"Exclusion"]
[null,null,null,null,"Public",null,null,null,null,null,null,null,"Public"]
[]
[]
[null,null,"Journée 9"]
[null,"A",null,null,"TD",null,null,"B",null,null,null,null,null,null,null,"B"]
[null,null,null,null,"Passe"]
[null,null,null,null,"Interception"]
[null,null,null,null,"Sortie"]
[null,null,null,null,"Agression"]
[null,null,null,null,"Exclusion"]
[null,null,null,null,"Public"]
[null,"A",null,null,"TD",null,null,"B",null,null,null,null,null,null,null,"B"]
[null,null,null,null,"Passe"]
[null,null,null,null,"Interception"]
[null,null,null,null,"Sortie"]
[null,null,null,null,"Agression"]
[null,null,null,null,"Exclusion"]
[null,null,null,null,"Public"]
[null,"A",null,null,"TD",null,null,"B",null,null,null,null,null,null,null,"B"]
[null,null,null,null,"Passe"]
[null,null,null,null,"Interception"]
[null,null,null,null,"Sortie"]
[null,null,null,null,"Agression"]
[null,null,null,null,"Exclusion"]
[null,null,null,null,"Public"]
[null,"A",null,null,"TD",null,null,"B",null,null,null,null,null,null,null,"B"]
[null,null,null,null,"Passe"]
[null,null,null,null,"Interception"]
[null,null,null,null,"Sortie"]
[null,null,null,null,"Agression"]
[null,null,null,null,"Exclusion"]
[null,null,null,null,"Public"]
[null,"A",null,null,"TD",null,null,"B",null,null,null,null,null,null,null,"B"]
[null,null,null,null,"Passe"]
[null,null,null,null,"Interception"]
[null,null,null,null,"Sortie"]
[null,null,null,null,"Agression"]
[null,null,null,null,"Exclusion"]
[null,null,null,null,"Public"]
[null,"A",null,null,"TD",null,null,"B",null,null,null,null,null,null,null,"B"]
[null,null,null,null,"Passe"]
[null,null,null,null,"Interception"]
[null,null,null,null,"Sortie"]
[null,null,null,null,"Agression"]
[null,null,null,null,"Exclusion"]
[null,null,null,null,"Public"]
[null,"A",null,null,"TD",null,null,"B",null,null,null,null,null,null,null,"B"]
[null,null,null,null,"Passe"]
[null,null,null,null,"Interception"]
[null,null,null,null,"Sortie"]
[null,null,null,null,"Agression"]
[null,null,null,null,"Exclusion"]
[null,null,null,null,"Public"]
[null,"A",null,null,"TD",null,null,"B",null,null,null,null,null,null,null,"B"]
[null,null,null,null,"Passe"]
[null,null,null,null,"Interception"]
[null,null,null,null,"Sortie"]
[null,null,null,null,"Agression"]
[null,null,null,null,"Exclusion"]
[null,null,null,null,"Public"]
[null,"A",null,null,"TD",null,null,"B",null,null,null,null,null,null,null,"B"]
[null,null,null,null,"Passe"]
[null,null,null,null,"Interception"]
[null,null,null,null,"Sortie"]
[null,null,null,null,"Agression"]
[null,null,null,null,"Exclusion"]
[null,null,null,null,"Public"]
[null,"A",null,null,"TD",null,null,"B",null,null,null,null,null,null,null,"B"]
[null,null,null,null,"Passe"]
[null,null,null,null,"Interception"]
[null,null,null,null,"Sortie"]
[null,null,null,null,"Agression"]
[null,null,null,null,"Exclusion"]
[null,null,null,null,"Public"]

{"sheet":"Classement Gén","index":5,"n_rows":23,"n_cols":21,"rows_kept":23,"cut":false,"hidden":false,"merged":[[1,1,1,20]]}
[]
[null,"CLASSEMENT GENERAL"]
[null,"#","Equipe","V","N","D","Nj","Points","TD+","TD-","Pas+","Pas-","Int+","Int-","Sor+","Sor-","Agr+","Agr-","Excl+","Excl-","Affluence Totale"]
[null,1,"Salade Grecque (Aurelnatation - Elfes Sylvains)",4,1,0,0,4452,11,5,5,6,0,0,7,5,0,1,0,1,33000]
[null,2,"Valhalla Unicorns (Kirou - Nordiques)",4,0,1,0,4164,11,3,0,2,0,0,13,6,5,0,0,0,45000]
[null,3,"Thunder II (Moute - Nains du chaos)",4,0,1,0,4138,6,2,0,13,0,0,9,3,2,0,0,0,39000]
[null,4,"Machinistes (Didier - Ogres)",3,1,1,0,3541,4,1,0,3,0,0,14,9,1,0,0,0,35000]
[null,5,"Shadow Unicorns (Guldhan - Elfes Noires)",3,1,1,0,3538,7,5,9,3,0,0,4,4,0,0,0,1,44000]
[null,6,"Goat People (Vanhu - Chaos)",3,0,2,0,3243,7,3,0,4,0,0,11,4,0,1,0,0,21000]
[null,7,"Seattle Seaorcs (Battleaxe - Orcs)",3,0,2,0,3242,6,6,0,2,0,0,12,12,0,4,0,0,51000]
[null,8,"Arl'quinquin (ManX - Elfes Pros)",3,0,2,0,3241,7,6,6,0,0,0,7,10,0,0,0,0,35000]
[null,9,"KbbK (Sebnobi - Hommes lezards)",3,0,2,0,3238,7,6,0,8,0,0,8,2,1,0,1,0,40000]
[null,10,"Courreurs de Malepierre (Snagrot - Skavens)",3,0,2,0,3232,5,5,3,1,0,0,7,7,0,0,0,0,22000]
[null,11,"Merdouilles en folie ! (Nard - Gobs)",3,0,2,0,3230,5,3,0,1,0,0,7,6,1,0,0,0,22000]
[null,12,"Skablin Scavengers (Jabba - Bas fonds)",2,2,1,0,2939,6,4,1,4,0,0,10,16,0,0,0,0,31000]
[null,13,"UIPP (Jordel - Nurgle)",1,3,1,0,2337,3,3,3,1,0,0,12,9,1,1,1,0,47000]
[null,14,"Pointy Pretenders (GuttedRunner - Hauts Elfes)",1,1,3,0,1747,8,7,9,1,0,0,7,6,0,2,0,0,39000]
[null,15,"Brochettes Quenelloises (Maryan - Bretonniens)",1,1,3,0,1725,4,7,3,0,0,0,5,13,0,1,0,0,23000]
[null,16,"Kislev Flying Circus (Peco - Slanns)",1,1,3,0,1718,3,7,7,3,0,0,1,10,0,0,0,0,24000]
[null,17,"Karak Ungor Nervous Ulcers (Winny - Gobs)",1,0,4,0,1428,2,7,4,3,0,0,9,18,0,1,0,0,35000]
[null,18,"Canonniers (Rovieli - Humains)",0,2,3,0,1136,3,10,6,2,0,0,10,17,1,1,0,0,26000]
[null,19,"Chaos bang (Donkydoc - Chaos pact)",0,1,4,0,826,1,6,3,2,0,0,10,6,0,0,0,0,29000]
[null,20,"MLF New Age (BaptSalamander - MV)",0,0,5,0,500,0,10,0,0,0,0,0,0,0,0,0,0,0]

{"sheet":"Classement PA","index":6,"n_rows":13,"n_cols":21,"rows_kept":13,"cut":false,"hidden":false,"merged":[[1,1,1,20],[3,0,6,0],[7,0,10,0]]}
[]
[null,"CLASSEMENT POULE REIKLAND"]
[null,"#","Equipe","V","N","D","Nj","Points","TD+","TD-","Pas+","Pas-","Int+","Int-","Sor+","Sor-","Agr+","Agr-","Excl+","Excl-","Affluence Totale"]
[null,1,"Valhalla Unicorns (Kirou - Nordiques)",4,0,1,0,4164,11,3,0,2,0,0,13,6,5,0,0,0,45000]
[null,2,"Machinistes (Didier - Ogres)",3,1,1,0,3541,4,1,0,3,0,0,14,9,1,0,0,0,35000]
[null,3,"Goat People (Vanhu - Chaos)",3,0,2,0,3243,7,3,0,4,0,0,11,4,0,1,0,0,21000]
[null,4,"Seattle Seaorcs (Battleaxe - Orcs)",3,0,2,0,3242,6,6,0,2,0,0,12,12,0,4,0,0,51000]
[null,5,"Arl'quinquin (ManX - Elfes Pros)",3,0,2,0,3241,7,6,6,0,0,0,7,10,0,0,0,0,35000]
[null,6,"Courreurs de Malepierre (Snagrot - Skavens)",3,0,2,0,3232,5,5,3,1,0,0,7,7,0,0,0,0,22000]
[null,7,"Merdouilles en folie ! (Nard - Gobs)",3,0,2,0,3230,5,3,0,1,0,0,7,6,1,0,0,0,22000]
[null,8,"Brochettes Quenelloises (Maryan - Bretonniens)",1,1,3,0,1725,4,7,3,0,0,0,5,13,0,1,0,0,23000]
[null,9,"Karak Ungor Nervous Ulcers (Winny - Gobs)",1,0,4,0,1428,2,7,4,3,0,0,9,18,0,1,0,0,35000]
[null,10,"MLF New Age (BaptSalamander - MV)",0,0,5,0,500,0,10,0,0,0,0,0,0,0,0,0,0,0]

{"sheet":"Classement PB","index":7,"n_rows":13,"n_cols":21,"rows_kept":13,"cut":false,"hidden":false,"merged":[[1,1,1,20],[3,0,6,0],[7,0,10,0]]}
[]
[null,"CLASSEMENT POULE MIDDENLAND"]
[null,"#","Equipe","V","N","D","Nj","Points","TD+","TD-","Pas+","Pas-","Int+","Int-","Sor+","Sor-","Agr+","Agr-","Excl+","Excl-","Affluence Totale"]
[null,1,"Salade Grecque (Aurelnatation - Elfes Sylvains)",4,1,0,0,4452,11,5,5,6,0,0,7,5,0,1,0,1,33000]
[null,2,"Thunder II (Moute - Nains du chaos)",4,0,1,0,4138,6,2,0,13,0,0,9,3,2,0,0,0,39000]
[null,3,"Shadow Unicorns (Guldhan - Elfes Noires)",3,1,1,0,3538,7,5,9,3,0,0,4,4,0,0,0,1,44000]
[null,4,"KbbK (Sebnobi - Hommes lezards)",3,0,2,0,3238,7,6,0,8,0,0,8,2,1,0,1,0,40000]
[null,5,"Skablin Scavengers (Jabba - Bas fonds)",2,2,1,0,2939,6,4,1,4,0,0,10,16,0,0,0,0,31000]
[null,6,"UIPP (Jordel - Nurgle)",1,3,1,0,2337,3,3,3,1,0,0,12,9,1,1,1,0,47000]
[null,7,"Pointy Pretenders (GuttedRunner - Hauts Elfes)",1,1,3,0,1747,8,7,9,1,0,0,7,6,0,2,0,0,39000]
[null,8,"Kislev Flying Circus (Peco - Slanns)",1,1,3,0,1718,3,7,7,3,0,0,1,10,0,0,0,0,24000]
[null,9,"Canonniers (Rovieli - Humains)",0,2,3,0,1136,3,10,6,2,0,0,10,17,1,1,0,0,26000]
[null,10,"Chaos bang (Donkydoc - Chaos pact)",0,1,4,0,826,1,6,3,2,0,0,10,6,0,0,0,0,29000]

{"sheet":"Classement Att","index":8,"n_rows":23,"n_cols":6,"rows_kept":23,"cut":false,"hidden":false,"merged":[[1,1,1,5]]}
[]
[null,"Trophée meilleure attaque"]
[null,"#","Equipe","TD+","TD-","Différence"]
[null,1,"Valhalla Unicorns (Kirou - Nordiques)",11,3,8]
[null,2,"Salade Grecque (Aurelnatation - Elfes Sylvains)",11,5,6]
[null,3,"Pointy Pretenders (GuttedRunner - Hauts Elfes)",8,7,1]
[null,4,"Goat People (Vanhu - Chaos)",7,3,4]
[null,5,"Shadow Unicorns (Guldhan - Elfes Noires)",7,5,2]
[null,6,"Arl'quinquin (ManX - Elfes Pros)",7,6,1]
[null,7,"KbbK (Sebnobi - Hommes lezards)",7,6,1]
[null,8,"Thunder II (Moute - Nains du chaos)",6,2,4]
[null,9,"Skablin Scavengers (Jabba - Bas fonds)",6,4,2]
[null,10,"Seattle Seaorcs (Battleaxe - Orcs)",6,6,0]
[null,11,"Merdouilles en folie ! (Nard - Gobs)",5,3,2]
[null,12,"Courreurs de Malepierre (Snagrot - Skavens)",5,5,0]
[null,13,"Machinistes (Didier - Ogres)",4,1,3]
[null,14,"Brochettes Quenelloises (Maryan - Bretonniens)",4,7,-3]
[null,15,"UIPP (Jordel - Nurgle)",3,3,0]
[null,16,"Kislev Flying Circus (Peco - Slanns)",3,7,-4]
[null,17,"Canonniers (Rovieli - Humains)",3,10,-7]
[null,18,"Karak Ungor Nervous Ulcers (Winny - Gobs)",2,7,-5]
[null,19,"Chaos bang (Donkydoc - Chaos pact)",1,6,-5]
[null,20,"MLF New Age (BaptSalamander - MV)",0,10,-10]

{"sheet":"Classement Déf","index":9,"n_rows":23,"n_cols":6,"rows_kept":23,"cut":false,"hidden":false,"merged":[[1,1,1,5]]}
[]
[null,"Trophée meilleure défense"]
[null,"#","Equipe","TD+","TD-","Différence"]
[null,1,"Machinistes (Didier - Ogres)",4,1,3]
[null,2,"Thunder II (Moute - Nains du chaos)",6,2,4]
[null,3,"Valhalla Unicorns (Kirou - Nordiques)",11,3,8]
[null,4,"Goat People (Vanhu - Chaos)",7,3,4]
[null,5,"Merdouilles en folie ! (Nard - Gobs)",5,3,2]
[null,6,"UIPP (Jordel - Nurgle)",3,3,0]
[null,7,"Skablin Scavengers (Jabba - Bas fonds)",6,4,2]
[null,8,"Salade Grecque (Aurelnatation - Elfes Sylvains)",11,5,6]
[null,9,"Shadow Unicorns (Guldhan - Elfes Noires)",7,5,2]
[null,10,"Courreurs de Malepierre (Snagrot - Skavens)",5,5,0]
[null,11,"Arl'quinquin (ManX - Elfes Pros)",7,6,1]
[null,12,"KbbK (Sebnobi - Hommes lezards)",7,6,1]
[null,13,"Seattle Seaorcs (Battleaxe - Orcs)",6,6,0]
[null,14,"Chaos bang (Donkydoc - Chaos pact)",1,6,-5]
[null,15,"Pointy Pretenders (GuttedRunner - Hauts Elfes)",8,7,1]
[null,16,"Brochettes Quenelloises (Maryan - Bretonniens)",4,7,-3]
[null,17,"Kislev Flying Circus (Peco - Slanns)",3,7,-4]
[null,18,"Karak Ungor Nervous Ulcers (Winny - Gobs)",2,7,-5]
[null,19,"Canonniers (Rovieli - Humains)",3,10,-7]
[null,20,"MLF New Age (BaptSalamander - MV)",0,10,-10]

{"sheet":"Classement Réu","index":10,"n_rows":23,"n_cols":8,"rows_kept":23,"cut":false,"hidden":false,"merged":[[1,1,1,7]]}
[]
[null,"Trophée meilleur passeur"]
[null,"#","Equipe","Pas+","Pas-","Int+","Int-","Total"]
[null,1,"Pointy Pretenders (GuttedRunner - Hauts Elfes)",9,1,0,0,9]
[null,2,"Shadow Unicorns (Guldhan - Elfes Noires)",9,3,0,0,9]
[null,3,"Kislev Flying Circus (Peco - Slanns)",7,3,0,0,7]
[null,4,"Arl'quinquin (ManX - Elfes Pros)",6,0,0,0,6]
[null,5,"Canonniers (Rovieli - Humains)",6,2,0,0,6]
[null,6,"Salade Grecque (Aurelnatation - Elfes Sylvains)",5,6,0,0,5]
[null,7,"Karak Ungor Nervous Ulcers (Winny - Gobs)",4,3,0,0,4]
[null,8,"Brochettes Quenelloises (Maryan - Bretonniens)",3,0,0,0,3]
[null,9,"Courreurs de Malepierre (Snagrot - Skavens)",3,1,0,0,3]
[null,10,"UIPP (Jordel - Nurgle)",3,1,0,0,3]
[null,11,"Chaos bang (Donkydoc - Chaos pact)",3,2,0,0,3]
[null,12,"Skablin Scavengers (Jabba - Bas fonds)",1,4,0,0,1]
[null,13,"MLF New Age (BaptSalamander - MV)",0,0,0,0,0]
[null,14,"Merdouilles en folie ! (Nard - Gobs)",0,1,0,0,0]
[null,15,"Valhalla Unicorns (Kirou - Nordiques)",0,2,0,0,0]
[null,16,"Seattle Seaorcs (Battleaxe - Orcs)",0,2,0,0,0]
[null,17,"Machinistes (Didier - Ogres)",0,3,0,0,0]
[null,18,"Goat People (Vanhu - Chaos)",0,4,0,0,0]
[null,19,"KbbK (Sebnobi - Hommes lezards)",0,8,0,0,0]
[null,20,"Thunder II (Moute - Nains du chaos)",0,13,0,0,0]

{"sheet":"Classement Sor","index":11,"n_rows":23,"n_cols":6,"rows_kept":23,"cut":false,"hidden":false,"merged":[[1,1,1,5]]}
[]
[null,"Trophée meilleur sorteur"]
[null,"#","Equipe","Sor+","Sor-","Différence"]
[null,1,"Machinistes (Didier - Ogres)",14,9,5]
[null,2,"Valhalla Unicorns (Kirou - Nordiques)",13,6,7]
[null,3,"UIPP (Jordel - Nurgle)",12,9,3]
[null,4,"Seattle Seaorcs (Battleaxe - Orcs)",12,12,0]
[null,5,"Goat People (Vanhu - Chaos)",11,4,7]
[null,6,"Chaos bang (Donkydoc - Chaos pact)",10,6,4]
[null,7,"Skablin Scavengers (Jabba - Bas fonds)",10,16,-6]
[null,8,"Canonniers (Rovieli - Humains)",10,17,-7]
[null,9,"Thunder II (Moute - Nains du chaos)",9,3,6]
[null,10,"Karak Ungor Nervous Ulcers (Winny - Gobs)",9,18,-9]
[null,11,"KbbK (Sebnobi - Hommes lezards)",8,2,6]
[null,12,"Salade Grecque (Aurelnatation - Elfes Sylvains)",7,5,2]
[null,13,"Merdouilles en folie ! (Nard - Gobs)",7,6,1]
[null,14,"Pointy Pretenders (GuttedRunner - Hauts Elfes)",7,6,1]
[null,15,"Courreurs de Malepierre (Snagrot - Skavens)",7,7,0]
[null,16,"Arl'quinquin (ManX - Elfes Pros)",7,10,-3]
[null,17,"Brochettes Quenelloises (Maryan - Bretonniens)",5,13,-8]
[null,18,"Shadow Unicorns (Guldhan - Elfes Noires)",4,4,0]
[null,19,"Kislev Flying Circus (Peco - Slanns)",1,10,-9]
[null,20,"MLF New Age (BaptSalamander - MV)",0,0,0]

{"sheet":"Classement Agr","index":12,"n_rows":23,"n_cols":7,"rows_kept":23,"cut":false,"hidden":false,"merged":[[1,1,1,6]]}
[]
[null,"Trophée meilleur agresseur"]
[null,"#","Equipe","Agr+","Agr-","Excl+","Excl-"]
[null,1,"Valhalla Unicorns (Kirou - Nordiques)",5,0,0,0]
[null,2,"Thunder II (Moute - Nains du chaos)",2,0,0,0]
[null,3,"UIPP (Jordel - Nurgle)",1,1,1,0]
[null,4,"KbbK (Sebnobi - Hommes lezards)",1,0,1,0]
[null,5,"Canonniers (Rovieli - Humains)",1,1,0,0]
[null,6,"Machinistes (Didier - Ogres)",1,0,0,0]
[null,7,"Merdouilles en folie ! (Nard - Gobs)",1,0,0,0]
[null,8,"Seattle Seaorcs (Battleaxe - Orcs)",0,4,0,0]
[null,9,"Pointy Pretenders (GuttedRunner - Hauts Elfes)",0,2,0,0]
[null,10,"Salade Grecque (Aurelnatation - Elfes Sylvains)",0,1,0,1]
[null,11,"Brochettes Quenelloises (Maryan - Bretonniens)",0,1,0,0]
[null,12,"Karak Ungor Nervous Ulcers (Winny - Gobs)",0,1,0,0]
[null,13,"Goat People (Vanhu - Chaos)",0,1,0,0]
[null,14,"Shadow Unicorns (Guldhan - Elfes Noires)",0,0,0,1]
[null,15,"Courreurs de Malepierre (Snagrot - Skavens)",0,0,0,0]
[null,16,"MLF New Age (BaptSalamander - MV)",0,0,0,0]
[null,17,"Arl'quinquin (ManX - Elfes Pros)",0,0,0,0]
[null,18,"Chaos bang (Donkydoc - Chaos pact)",0,0,0,0]
[null,19,"Skablin Scavengers (Jabba - Bas fonds)",0,0,0,0]
[null,20,"Kislev Flying Circus (Peco - Slanns)",0,0,0,0]

{"sheet":"Classement Spectacle","index":13,"n_rows":23,"n_cols":11,"rows_kept":23,"cut":false,"hidden":false,"merged":[[1,1,1,10]]}
[]
[null,"Trophée \"Pour toi public !\""]
[null,"#","Equipe","TD+","Pas+","Int+","Sor+","Agr+","Excl+","% Spectateurs","Total"]
[null,1,"Valhalla Unicorns (Kirou - Nordiques)",11,0,0,13,5,0,7.0000000000000009,29.07]
[null,2,"Pointy Pretenders (GuttedRunner - Hauts Elfes)",8,9,0,7,0,0,6.1,24.061]
[null,3,"Salade Grecque (Aurelnatation - Elfes Sylvains)",11,5,0,7,0,0,5.0999999999999996,23.050999999999998]
[null,4,"UIPP (Jordel - Nurgle)",3,3,0,12,1,1,7.3,20.073]
[null,5,"Shadow Unicorns (Guldhan - Elfes Noires)",7,9,0,4,0,0,6.9,20.068999999999999]
[null,6,"Arl'quinquin (ManX - Elfes Pros)",7,6,0,7,0,0,5.5,20.055]
[null,7,"Canonniers (Rovieli - Humains)",3,6,0,10,1,0,4.1000000000000005,20.041]
[null,8,"Machinistes (Didier - Ogres)",4,0,0,14,1,0,5.5,19.055]
[null,9,"Seattle Seaorcs (Battleaxe - Orcs)",6,0,0,12,0,0,8,18.079999999999998]
[null,10,"Goat People (Vanhu - Chaos)",7,0,0,11,0,0,3.3000000000000003,18.033000000000001]
[null,11,"KbbK (Sebnobi - Hommes lezards)",7,0,0,8,1,1,6.2,17.062000000000001]
[null,12,"Thunder II (Moute - Nains du chaos)",6,0,0,9,2,0,6.1,17.061]
[null,13,"Skablin Scavengers (Jabba - Bas fonds)",6,1,0,10,0,0,4.8,17.047999999999998]
[null,14,"Karak Ungor Nervous Ulcers (Winny - Gobs)",2,4,0,9,0,0,5.5,15.055]
[null,15,"Courreurs de Malepierre (Snagrot - Skavens)",5,3,0,7,0,0,3.4000000000000004,15.034000000000001]
[null,16,"Chaos bang (Donkydoc - Chaos pact)",1,3,0,10,0,0,4.5,14.045]
[null,17,"Merdouilles en folie ! (Nard - Gobs)",5,0,0,7,1,0,3.4000000000000004,13.034000000000001]
[null,18,"Brochettes Quenelloises (Maryan - Bretonniens)",4,3,0,5,0,0,3.5999999999999996,12.036]
[null,19,"Kislev Flying Circus (Peco - Slanns)",3,7,0,1,0,0,3.6999999999999997,11.037000000000001]
[null,20,"MLF New Age (BaptSalamander - MV)",0,0,0,0,0,0,0,0]